{"text_format":"1","workbook":"xlsx","n_sheets":5,"sheets":["DATA","User Instructions","DATA ENTRY","FORM","Changes"],"not_rendered":{"charts":0,"images":6,"macros":1,"external_links":0,"defined_names":59,"comments":2,"pivot_tables":0},"unopened":[],"bounds":{"document_bytes":16777216,"sheet_cells":100000,"rows_first":2000,"rows_last":500,"rows_between":2000,"halvings":0,"cell_chars":16384,"cell_head_chars":4096},"cells_cut":0,"cells_raw":0,"read":"whole","date_system":"1900"}

{"sheet":"DATA","index":0,"n_rows":317,"n_cols":181,"rows_kept":317,"cut":false,"hidden":true,"merged":[[8,42,15,45]]}
[null,null,null,null,null,null,null,null,null,null,null,null,1,"Select your first remittance date >",null,null,null,null,null,null,null,null,1,2,3,4,5,{"$f":"+AA1+1","v":6},{"$f":"+AB1+1","v":7},8,9,10,11,12,null,null,null,null,null,null,null,null,1,null,null,null,null,1,{"$f":"+AV1+1","v":2},{"$f":"+AW1+1","v":3},4,5,6,{"$f":"+BA1+1","v":7},{"$f":"+BB1+1","v":8},{"$f":"+BC1+1","v":9},{"$f":"+BD1+1","v":10},{"$f":"+BE1+1","v":11},{"$f":"+BF1+1","v":12},{"$f":"+BG1+1","v":13},{"$f":"+BH1+1","v":14},{"$f":"+BI1+1","v":15},{"$f":"+BJ1+1","v":16},{"$f":"+BK1+1","v":17},{"$f":"+BL1+1","v":18},{"$f":"+BM1+1","v":19},{"$f":"+BN1+1","v":20},{"$f":"+BO1+1","v":21},{"$f":"+BP1+1","v":22},{"$f":"+BQ1+1","v":23},{"$f":"+BR1+1","v":24},{"$f":"+BS1+1","v":25},{"$f":"+BT1+1","v":26},{"$f":"+BU1+1","v":27},{"$f":"+BV1+1","v":28},{"$f":"+BW1+1","v":29},{"$f":"+BX1+1","v":30},{"$f":"+BY1+1","v":31},{"$f":"+BZ1+1","v":32},{"$f":"+CA1+1","v":33},{"$f":"+CB1+1","v":34},{"$f":"+CC1+1","v":35},{"$f":"+CD1+1","v":36},{"$f":"+CE1+1","v":37},{"$f":"+CF1+1","v":38},{"$f":"+CG1+1","v":39},{"$f":"+CH1+1","v":40},{"$f":"+CI1+1","v":41},{"$f":"+CJ1+1","v":42},{"$f":"+CK1+1","v":43},{"$f":"+CL1+1","v":44},{"$f":"+CM1+1","v":45},{"$f":"+CN1+1","v":46},{"$f":"+CO1+1","v":47},{"$f":"+CP1+1","v":48},{"$f":"+CQ1+1","v":49},{"$f":"+CR1+1","v":50},{"$f":"+CS1+1","v":51},{"$f":"+CT1+1","v":52},{"$f":"+CU1+1","v":53},{"$f":"+CV1+1","v":54},{"$f":"+CW1+1","v":55},{"$f":"+CX1+1","v":56},{"$f":"+CY1+1","v":57},{"$f":"+CZ1+1","v":58},{"$f":"+DA1+1","v":59},{"$f":"+DB1+1","v":60},{"$f":"+DC1+1","v":61},{"$f":"+DD1+1","v":62},{"$f":"+DE1+1","v":63},{"$f":"+DF1+1","v":64},{"$f":"+DG1+1","v":65},{"$f":"+DH1+1","v":66},{"$f":"+DI1+1","v":67},{"$f":"+DJ1+1","v":68},{"$f":"+DK1+1","v":69},{"$f":"+DL1+1","v":70},{"$f":"+DM1+1","v":71},{"$f":"+DN1+1","v":72},{"$f":"+DO1+1","v":73},{"$f":"+DP1+1","v":74},{"$f":"+DQ1+1","v":75},{"$f":"+DR1+1","v":76},{"$f":"+DS1+1","v":77},{"$f":"+DT1+1","v":78},{"$f":"+DU1+1","v":79},{"$f":"+DV1+1","v":80},{"$f":"+DW1+1","v":81},{"$f":"+DX1+1","v":82},{"$f":"+DY1+1","v":83},{"$f":"+DZ1+1","v":84},{"$f":"+EA1+1","v":85},{"$f":"+EB1+1","v":86},{"$f":"+EC1+1","v":87},{"$f":"+ED1+1","v":88},{"$f":"+EE1+1","v":89},{"$f":"+EF1+1","v":90},{"$f":"+EG1+1","v":91},{"$f":"+EH1+1","v":92},{"$f":"+EI1+1","v":93},{"$f":"+EJ1+1","v":94},{"$f":"+EK1+1","v":95},{"$f":"+EL1+1","v":96},{"$f":"+EM1+1","v":97},{"$f":"+EN1+1","v":98},{"$f":"+EO1+1","v":99},{"$f":"+EP1+1","v":100},{"$f":"+EQ1+1","v":101},{"$f":"+ER1+1","v":102},{"$f":"+ES1+1","v":103},{"$f":"+ET1+1","v":104},{"$f":"+EU1+1","v":105},{"$f":"+EV1+1","v":106},{"$f":"+EW1+1","v":107},{"$f":"+EX1+1","v":108},{"$f":"+EY1+1","v":109},{"$f":"+EZ1+1","v":110},{"$f":"+FA1+1","v":111},{"$f":"+FB1+1","v":112},{"$f":"+FC1+1","v":113},{"$f":"+FD1+1","v":114},{"$f":"+FE1+1","v":115},{"$f":"+FF1+1","v":116},{"$f":"+FG1+1","v":117},{"$f":"+FH1+1","v":118},{"$f":"+FI1+1","v":119},{"$f":"+FJ1+1","v":120},{"$f":"+FK1+1","v":121},{"$f":"+FL1+1","v":122},{"$f":"+FM1+1","v":123},{"$f":"+FN1+1","v":124},{"$f":"+FO1+1","v":125}]
[null,"Mun tax Due Dates","https://www.gov.mb.ca/asset_library/en/newslinks/2021/06/BKG-Education_Property_Tax_Rebate-FIN.pdf",null,null,null,null,null,null,null,null,null,null,null,null,null,null,null,null,null,null,null,null,null,null,null,null,null,null,null,null,null,null,null,null,null,null,null,null,null,null,null,null,null,null,null,"Source: ","\\\\ME\\edu\\114eduWGP\\Edusfb\\Frame\\SpecLevy\\Form2\\2024\\LINKS_MUN_FORM2 - 2024.xlsm"]
[null,null,null,null,null,null,null,null,null,null,null,null,null,null,null,null,null,null,null,null,null,null,null,null,null,null,null,null,null,null,null,null,null,null,null,null,null,null,null,null,null,null,null,null,null,null,"NOTE: Source file should be updated with budget year numbers, and renamed to corresponding year"]
[null,null,null,null,null,null,null,null,null,null,null,null,null,null,null,null,null,null,null,null,null,null,null,null,null,null,null,null,null,null,null,null,null,null,null,null,null,null,null,null,null,null,"English",null,null,null,null,null,null,null,null,null,"Special Levy"]
[null,null,1,"Press arrow for your School Division >","No.",null,"DIVNUM_MUN","MUN","DUE",null,null,null,null,null,null,null,null,null,null,null,null,null,null,null,null,null,null,null,null,null,null,null,null,null,null,null,null,null,null,null,null,null,"French",null,null,null,null,null,null,"Special Levy","Special Levy","Special Levy","Before","Previous Year",null,null,null,null,"Total"]
["DIVNUM",1,2,"BEAUTIFUL PLAINS","BE",{"$f":"COUNTIF($G$6:$G$273,E6)","v":10},"BE","rm of elton","Oct 29",null,"DATENUM",2,2,"Provincial Funding",null,null,null,null,null,null,null,null,{"$f":"+'DATA ENTRY'!G33","v":"REMITTANCE 1"},{"$f":"+'DATA ENTRY'!H33","v":"REMITTANCE 2"},{"$f":"+'DATA ENTRY'!I33","v":"REMITTANCE 3"},{"$f":"+'DATA ENTRY'!J33","v":"REMITTANCE 4"},{"$f":"+'DATA ENTRY'!K33","v":"REMITTANCE 5"},{"$f":"+'DATA ENTRY'!L33","v":"REMITTANCE 6"},{"$f":"+'DATA ENTRY'!M33","v":"REMITTANCE 7"},{"$f":"+'DATA ENTRY'!N33","v":"REMITTANCE 8"},{"$f":"+'DATA ENTRY'!O33","v":"REMITTANCE 9"},{"$f":"+'DATA ENTRY'!P33","v":"REMITTANCE 10"},{"$f":"+'DATA ENTRY'!Q33","v":"REMITTANCE 11"},{"$f":"+'DATA ENTRY'!R33","v":"REMITTANCE 12"},{"$f":"IF(ISERROR(HLOOKUP(AI7,W1:AH7,3,0)=TRUE),0,(HLOOKUP(AI7,W1:AH7,3,0)))","v":0},null,null,null,null,null,null,null,null,null,null,null,null,80,null,"for the SD","for DSFM","Adj for DSFM","TIG & PTOG","TIG ADJ","TIG","TIG by divison","PTOG by division","DSFM PTOG","Special Levy",null,"Municipalities","NO DSFM"]
[null,null,3,"BORDER LAND","BO",{"$f":"COUNTIF($G$6:$G$273,E7)","v":9},"BE","municipality of glenella-lansdowne","Oct 31",null,null,null,3,"Jul 31",null,null,null,null,null,null,null,null,{"$f":"+'DATA ENTRY'!G34","v":0},{"$f":"+'DATA ENTRY'!H34","v":0},{"$f":"+'DATA ENTRY'!I34","v":0},{"$f":"+'DATA ENTRY'!J34","v":0},{"$f":"+'DATA ENTRY'!K34","v":0},{"$f":"+'DATA ENTRY'!L34","v":0},{"$f":"+'DATA ENTRY'!M34","v":0},{"$f":"+'DATA ENTRY'!N34","v":0},{"$f":"+'DATA ENTRY'!O34","v":0},{"$f":"+'DATA ENTRY'!P34","v":0},{"$f":"+'DATA ENTRY'!Q34","v":0},{"$f":"+'DATA ENTRY'!R34","v":0},{"$f":"+MAX(AI8:AI33)","v":0},null,null,null,null,1,null,null,null,null,null,null,null,"CO. ","DIVISION/DISTRICT","SPLEVDIV","SPLEVDSFM","SLADJLT","G17","G18","TIGSL2","TIG","TOG",null,"SPLEVLT",null,1,{"$f":"+BI7+1","v":2},{"$f":"+BJ7+1","v":3},4,5,6,7,8,9,10,11,12,13,14,15,16,17,18,19,20,21,22,23,24,25,26,27,28,29,30,31,32,33,34,35,36,37,38,39,40,41,42,43,44,45,46,47,48,49,50,51,52,53,54,55,1,{"$f":"+DL7+1","v":2},{"$f":"+DM7+1","v":3},4,5,6,7,8,9,10,11,12,13,14,15,16,17,18,19,20,21,22,23,{"$f":"+EH7+1","v":24},25,26,27,28,29,30,31,32,33,34,35,36,37,38,39,40,41,42,43,44,45,46,47,48,49,50,51,52,53,54,55,"Ratios Page","PTOG DIV ",null,"DSFM","Control"]
["DIVNUM2",{"$f":"VLOOKUP(B6,C1:E57,3)","v":"No."},4,"BRANDON","BR",9,"BE","municipality of north cypress-langford","Sep 30",null,"DATENUM2",{"$f":"IF(OR(DATENUM=1,DATENUM=2),\"\",VLOOKUP(L6,M1:N8,2))","v":""},4,"Oct 31",null,null,null,null,null,6,null,{"$f":"+'DATA ENTRY'!A35","v":0},{"$f":"IF('DATA ENTRY'!G35=\"\",0,1)","v":0},{"$f":"IF('DATA ENTRY'!H35=\"\",0,2)","v":0},{"$f":"IF('DATA ENTRY'!I35=\"\",0,3)","v":0},{"$f":"IF('DATA ENTRY'!J35=\"\",0,4)","v":0},{"$f":"IF('DATA ENTRY'!K35=\"\",0,AA1)","v":0},{"$f":"IF('DATA ENTRY'!L35=\"\",0,AB1)","v":0},{"$f":"IF('DATA ENTRY'!M35=\"\",0,AC1)","v":0},{"$f":"IF('DATA ENTRY'!N35=\"\",0,AD1)","v":0},{"$f":"IF('DATA ENTRY'!O35=\"\",0,AE1)","v":0},{"$f":"IF('DATA ENTRY'!P35=\"\",0,AF1)","v":0},{"$f":"IF('DATA ENTRY'!Q35=\"\",0,AG1)","v":0},{"$f":"IF('DATA ENTRY'!R35=\"\",0,AH1)","v":0},{"$f":"MAX(W8:AH8)","v":0},{"$f":"HLOOKUP($AI$7,'DATA ENTRY'!$G$16:$R$60,T8,0)","v":{"$error":"#N/A"}},{"$f":"+V8","v":0},null,null,{"$f":"+AN7+1","v":2},null,null,null,null,null,null,null,null,null,null,null,null,null,null,null,null,null,null,null,null,null,null,null,null,null,null,null,null,null,null,null,null,null,null,null,null,null,null,null,null,null,null,null,null,null,null,null,null,null,null,null,null,null,null,null,null,null,null,null,null,null,null,null,null,null,null,null,null,null,null,null,null,null,null,null,null,null,null,null,null,null,null,null,null,null,null,null,null,null,null,null,null,null,null,null,null,null,null,null,null,null,null,null,null,null,null,null,null,null,null,null,null,null,null,null,null,null,null,null,null,null,null,null,null,null,null,null,null,null,null,null,null,null,null,null,null,null,null,null,null,"TOTAL Sp. Levy - L"]
[null,null,5,"EVERGREEN","EV",9,"BE","municipality of north norfolk","Sep 30",null,null,null,null,null,null,null,null,null,null,{"$f":"+T8+1","v":7},null,{"$f":"+'DATA ENTRY'!A36","v":0},{"$f":"IF('DATA ENTRY'!G36=\"\",0,1)","v":0},{"$f":"IF('DATA ENTRY'!H36=\"\",0,2)","v":0},{"$f":"IF('DATA ENTRY'!I36=\"\",0,3)","v":0},{"$f":"IF('DATA ENTRY'!J36=\"\",0,4)","v":0},{"$f":"IF('DATA ENTRY'!K36=\"\",0,AA1)","v":0},{"$f":"IF('DATA ENTRY'!L36=\"\",0,AB1)","v":0},{"$f":"IF('DATA ENTRY'!M36=\"\",0,AC1)","v":0},{"$f":"IF('DATA ENTRY'!N36=\"\",0,AD1)","v":0},{"$f":"IF('DATA ENTRY'!O36=\"\",0,AE1)","v":0},{"$f":"IF('DATA ENTRY'!P36=\"\",0,AF1)","v":0},{"$f":"IF('DATA ENTRY'!Q36=\"\",0,AG1)","v":0},{"$f":"IF('DATA ENTRY'!R36=\"\",0,AH1)","v":0},0,{"$f":"IF(HLOOKUP($AI$7,'DATA ENTRY'!$G$16:$R$60,T9,0)=\"\",0,HLOOKUP($AI$7,'DATA ENTRY'!$G$16:$R$60,T9,0))","v":{"$error":"#N/A"}},{"$f":"+V9","v":0},null,null,{"$f":"+AN8+1","v":3},null,null,"Important !!!!!!!!!:\nBefore post the form 2, send the ratios for the current year to the Manitoba Tax Assistance Office - so they can send the right amount to the Divisions, for the split between the Divisions share and DSFM.",null,null,null,"W/O","BE","BEAUTIFUL PLAINS",null,null,null,11009365,null,252166,252166,596979,null,10160220,null,"RM OF ELTON (124)","MUNICIPALITY OF GLENELLA-LANSDOWNE (142)","MUNICIPALITY OF NORTH CYPRESS-LANGFORD (155)","MUNICIPALITY OF NORTH NORFOLK (156)","RM OF MINTO-ODANAH (159)","RM OF ROSEDALE (170)","MUNICIPALITY OF GLENBORO-SOUTH CYPRESS (187)","RM OF VICTORIA (197)","TOWN OF CARBERRY (407)","TOWN OF NEEPAWA (437)",0,0,0,0,0,0,0,0,0,0,0,0,0,null,null,null,null,null,null,null,null,null,null,null,null,null,null,null,null,null,null,null,null,null,null,null,null,null,null,null,null,null,null,null,null,146704,787349,5039340,8591,70903,1090147,8409,3066,788171,2217541,0,0,0,0,0,0,0,0,0,0,0,0,null,null,null,null,null,null,null,null,null,null,null,null,null,null,null,null,null,null,null,null,null,null,null,null,null,null,null,null,null,null,null,null,null,{"$f":"+BG9-SUM(DL9:FN9)","v":-1},596979,{"$f":"+AV9","v":"BE"},"No DSFM",{"$f":"IF(AND(FO9=0,FR9=\"No DSFM\"),0,AY9-SUM(DL9:EH9))","v":-10160221},{"$f":"+AY9-SUM(DL9:EH9)","v":-10160221},{"$f":"+AV9","v":"BE"},null,null,null,{"$f":"SUM(AY9:AY45)","v":39175773}]
[null,null,6,"FLIN FLON","FL",1,"BE","rm of minto-odanah","Oct 29",null,"DATE_ON_OFF",2,null,null,null,null,null,null,null,{"$f":"+T9+1","v":8},1,{"$f":"+'DATA ENTRY'!A37","v":""},{"$f":"IF('DATA ENTRY'!G37=\"\",0,1)","v":0},{"$f":"IF('DATA ENTRY'!H37=\"\",0,2)","v":0},{"$f":"IF('DATA ENTRY'!I37=\"\",0,3)","v":0},{"$f":"IF('DATA ENTRY'!J37=\"\",0,4)","v":0},{"$f":"IF('DATA ENTRY'!K37=\"\",0,AA1)","v":0},{"$f":"IF('DATA ENTRY'!L37=\"\",0,AB1)","v":0},{"$f":"IF('DATA ENTRY'!M37=\"\",0,AC1)","v":0},{"$f":"IF('DATA ENTRY'!N37=\"\",0,AD1)","v":0},{"$f":"IF('DATA ENTRY'!O37=\"\",0,AE1)","v":0},{"$f":"IF('DATA ENTRY'!P37=\"\",0,AF1)","v":0},{"$f":"IF('DATA ENTRY'!Q37=\"\",0,AG1)","v":0},{"$f":"IF('DATA ENTRY'!R37=\"\",0,AH1)","v":0},0,{"$f":"HLOOKUP($AI$7,'DATA ENTRY'!$G$16:$R$60,T10,0)","v":{"$error":"#N/A"}},"",null,null,4,null,null,null,null,null,null,null,"BO","BORDER LAND",19409211,100770,0,19509981,0,2575999,2562850,1109209,-12268,15837041,null,"RM OF DE SALABERRY (119)","MUNICIPALITY OF EMERSON-FRANKLIN (127)","RM OF LA BROQUERIE (138)","RM OF MONTCALM (151)","RM OF MORRIS (152)","MUNICIPALITY OF RHINELAND (164)","TOWN OF ALTONA (400)","RM OF PINEY (610)","RM OF STUARTBURN (612)",0,0,0,0,0,0,0,0,0,0,0,0,0,0,null,null,null,null,null,null,null,null,null,null,null,null,null,null,null,null,null,null,null,null,null,null,null,null,null,null,null,null,null,null,null,null,296496,3309489,224012,1859585,54615,5236766,2833433,982143,1040502,0,0,0,0,0,0,0,0,0,0,0,0,0,null,null,null,null,null,null,null,null,null,null,null,null,null,null,null,null,null,null,null,null,null,null,null,null,null,null,null,null,null,null,null,null,null,{"$f":"+BG10-SUM(DL10:FN10)","v":0},1109209,"BO",null,-15736271,-15736271,"BO"]
[null,null,7,"FORT LA BOSSE","FO",7,"BE","rm of rosedale","Oct 31",null,null,null,null,null,null,null,null,null,null,9,{"$f":"+U10+1","v":2},{"$f":"+'DATA ENTRY'!A38","v":""},{"$f":"IF('DATA ENTRY'!G38=\"\",0,1)","v":0},{"$f":"IF('DATA ENTRY'!H38=\"\",0,2)","v":0},{"$f":"IF('DATA ENTRY'!I38=\"\",0,3)","v":0},{"$f":"IF('DATA ENTRY'!J38=\"\",0,4)","v":0},{"$f":"IF('DATA ENTRY'!K38=\"\",0,AA1)","v":0},{"$f":"IF('DATA ENTRY'!L38=\"\",0,AB1)","v":0},{"$f":"IF('DATA ENTRY'!M38=\"\",0,AC1)","v":0},{"$f":"IF('DATA ENTRY'!N38=\"\",0,AD1)","v":0},{"$f":"IF('DATA ENTRY'!O38=\"\",0,AE1)","v":0},{"$f":"IF('DATA ENTRY'!P38=\"\",0,AF1)","v":0},{"$f":"IF('DATA ENTRY'!Q38=\"\",0,AG1)","v":0},{"$f":"IF('DATA ENTRY'!R38=\"\",0,AH1)","v":0},0,{"$f":"HLOOKUP($AI$7,'DATA ENTRY'!$G$16:$R$60,T11,0)","v":{"$error":"#N/A"}},"",null,null,5,null,null,null,null,null,null,null,"BR","BRANDON",53696983,770351,-368,54466966,0,924007,909001,2418624,97455,51026880,null,"RM OF CORNWALLIS (116)","RM OF ELTON (124)","MUNICIPALITY OF NORTH CYPRESS-LANGFORD (155)","MUNICIPALITY OF OAKLAND-WAWANESA (157)","MUNICIPALITY OF GLENBORO-SOUTH CYPRESS (187)","RM OF WHITEHEAD (202)","RIVERDALE MUNICIPALITY (443)","MUNICIPALITY OF SOURIS-GLENWOOD (449)","CITY OF BRANDON (500)",0,0,0,0,0,0,0,0,0,0,0,0,0,0,null,null,null,null,null,null,null,null,null,null,null,null,null,null,null,null,null,null,null,null,null,null,null,null,null,null,null,null,null,null,null,null,3110978,444664,1368028,403528,552006,1896577,124755,2299,43124044,0,0,0,0,0,0,0,0,0,0,0,0,0,null,null,null,null,null,null,null,null,null,null,null,null,null,null,null,null,null,null,null,null,null,null,null,null,null,null,null,null,null,null,null,null,null,1,2418624,"BR",null,-50256528,-50256528,"BR"]
[null,null,8,"FRONTIER","FR",23,"BE","municipality of glenboro-south cypress","Oct 29",null,null,null,null,null,null,null,null,null,null,10,{"$f":"+U11+1","v":3},{"$f":"+'DATA ENTRY'!A39","v":""},{"$f":"IF('DATA ENTRY'!G39=\"\",0,1)","v":0},{"$f":"IF('DATA ENTRY'!H39=\"\",0,2)","v":0},{"$f":"IF('DATA ENTRY'!I39=\"\",0,3)","v":0},{"$f":"IF('DATA ENTRY'!J39=\"\",0,4)","v":0},{"$f":"IF('DATA ENTRY'!K39=\"\",0,AA1)","v":0},{"$f":"IF('DATA ENTRY'!L39=\"\",0,AB1)","v":0},{"$f":"IF('DATA ENTRY'!M39=\"\",0,AC1)","v":0},{"$f":"IF('DATA ENTRY'!N39=\"\",0,AD1)","v":0},{"$f":"IF('DATA ENTRY'!O39=\"\",0,AE1)","v":0},{"$f":"IF('DATA ENTRY'!P39=\"\",0,AF1)","v":0},{"$f":"IF('DATA ENTRY'!Q39=\"\",0,AG1)","v":0},{"$f":"IF('DATA ENTRY'!R39=\"\",0,AH1)","v":0},0,{"$f":"HLOOKUP($AI$7,'DATA ENTRY'!$G$16:$R$60,T12,0)","v":{"$error":"#N/A"}},"",null,null,6,null,null,null,null,null,null,null,"DI","D.S.F.M.",null,null,null,null,null,null,null,null,null,null,null,0,0,0,0,0,0,0,0,0,0,0,0,0,0,0,0,0,0,0,0,0,0,0,null,null,null,null,null,null,null,null,null,null,null,null,null,null,null,null,null,null,null,null,null,null,null,null,null,null,null,null,null,null,null,null,0,0,0,0,0,0,0,0,0,0,0,0,0,0,0,0,0,0,0,0,0,0,null,null,null,null,null,null,null,null,null,null,null,null,null,null,null,null,null,null,null,null,null,null,null,null,null,null,null,null,null,null,null,null,null,0,0,"DI","No DSFM",0,0,"DI",null,"Sum of ratios page + control (*)",null,{"$f":"+FY9-FW15","v":1163715342}]
[null,null,9,"GARDEN VALLEY","GA",4,"BE","rm of victoria","Oct 29",null,null,null,null,null,null,null,null,null,null,11,4,{"$f":"+'DATA ENTRY'!A40","v":""},{"$f":"IF('DATA ENTRY'!G40=\"\",0,1)","v":0},{"$f":"IF('DATA ENTRY'!H40=\"\",0,2)","v":0},{"$f":"IF('DATA ENTRY'!I40=\"\",0,3)","v":0},{"$f":"IF('DATA ENTRY'!J40=\"\",0,4)","v":0},{"$f":"IF('DATA ENTRY'!K40=\"\",0,AA1)","v":0},{"$f":"IF('DATA ENTRY'!L40=\"\",0,AB1)","v":0},{"$f":"IF('DATA ENTRY'!M40=\"\",0,AC1)","v":0},{"$f":"IF('DATA ENTRY'!N40=\"\",0,AD1)","v":0},{"$f":"IF('DATA ENTRY'!O40=\"\",0,AE1)","v":0},{"$f":"IF('DATA ENTRY'!P40=\"\",0,AF1)","v":0},{"$f":"IF('DATA ENTRY'!Q40=\"\",0,AG1)","v":0},{"$f":"IF('DATA ENTRY'!R40=\"\",0,AH1)","v":0},0,{"$f":"HLOOKUP($AI$7,'DATA ENTRY'!$G$16:$R$60,T13,0)","v":{"$error":"#N/A"}},"",null,null,7,null,null,null,null,null,null,"W/O","EV","EVERGREEN",null,null,null,14731677,null,1501499,1501499,797708,null,12432470,null,"MUNICIPALITY OF BIFROST-RIVERTON (105)","RM OF GIMLI (129)","RM OF ROCKWOOD (168)","RM OF ST. ANDREWS (174)","TOWN OF ARBORG (300)","VILLAGE OF DUNNOTTAR (311)","TOWN OF WINNIPEG BEACH (465)","RM OF ARMSTRONG (602)","RM OF FISHER (605)",0,0,0,0,0,0,0,0,0,0,0,0,0,0,null,null,null,null,null,null,null,null,null,null,null,null,null,null,null,null,null,null,null,null,null,null,null,null,null,null,null,null,null,null,null,null,2563652,6107891,4268,455584,557822,932569,1223477,585781,1426,0,0,0,0,0,0,0,0,0,0,0,0,0,null,null,null,null,null,null,null,null,null,null,null,null,null,null,null,null,null,null,null,null,null,null,null,null,null,null,null,null,null,null,null,null,null,0,797708,"EV","No DSFM",0,-12432470,"EV",null,{"$f":"SUM(FO9:FO45)+SUM(FS9:FS45)","v":-1119865850}]
[null,null,10,"HANOVER","HA",9,"BE","town of carberry","Sep 30",null,null,null,null,null,null,null,null,null,null,12,5,{"$f":"+'DATA ENTRY'!A41","v":""},{"$f":"IF('DATA ENTRY'!G41=\"\",0,1)","v":0},{"$f":"IF('DATA ENTRY'!H41=\"\",0,2)","v":0},{"$f":"IF('DATA ENTRY'!I41=\"\",0,3)","v":0},{"$f":"IF('DATA ENTRY'!J41=\"\",0,4)","v":0},{"$f":"IF('DATA ENTRY'!K41=\"\",0,AA1)","v":0},{"$f":"IF('DATA ENTRY'!L41=\"\",0,AB1)","v":0},{"$f":"IF('DATA ENTRY'!M41=\"\",0,AC1)","v":0},{"$f":"IF('DATA ENTRY'!N41=\"\",0,AD1)","v":0},{"$f":"IF('DATA ENTRY'!O41=\"\",0,AE1)","v":0},{"$f":"IF('DATA ENTRY'!P41=\"\",0,AF1)","v":0},{"$f":"IF('DATA ENTRY'!Q41=\"\",0,AG1)","v":0},{"$f":"IF('DATA ENTRY'!R41=\"\",0,AH1)","v":0},0,{"$f":"HLOOKUP($AI$7,'DATA ENTRY'!$G$16:$R$60,T14,0)","v":{"$error":"#N/A"}},"",null,null,8,null,null,null,null,null,null,"W/O","FL","FLIN FLON",null,null,null,5301361,null,376357,376357,251285,null,4673719,null,"City of Flin Flon, Municipality",0,0,0,0,0,0,0,0,0,0,0,0,0,0,0,0,0,0,0,0,0,0,null,null,null,null,null,null,null,null,null,null,null,null,null,null,null,null,null,null,null,null,null,null,null,null,null,null,null,null,null,null,null,null,4673719,0,0,0,0,0,0,0,0,0,0,0,0,0,0,0,0,0,0,0,0,0,null,null,null,null,null,null,null,null,null,null,null,null,null,null,null,null,null,null,null,null,null,null,null,null,null,null,null,null,null,null,null,null,null,0,251285,"FL","No DSFM",0,-4673719,"FL","FL",{"$f":"+FT14","v":-4673719}]
[null,null,11,"INTERLAKE","IN",10,"BE","town of neepawa","Sep 30",null,null,null,null,null,null,null,null,null,null,13,6,{"$f":"+'DATA ENTRY'!A42","v":""},{"$f":"IF('DATA ENTRY'!G42=\"\",0,1)","v":0},{"$f":"IF('DATA ENTRY'!H42=\"\",0,2)","v":0},{"$f":"IF('DATA ENTRY'!I42=\"\",0,3)","v":0},{"$f":"IF('DATA ENTRY'!J42=\"\",0,4)","v":0},{"$f":"IF('DATA ENTRY'!K42=\"\",0,AA1)","v":0},{"$f":"IF('DATA ENTRY'!L42=\"\",0,AB1)","v":0},{"$f":"IF('DATA ENTRY'!M42=\"\",0,AC1)","v":0},{"$f":"IF('DATA ENTRY'!N42=\"\",0,AD1)","v":0},{"$f":"IF('DATA ENTRY'!O42=\"\",0,AE1)","v":0},{"$f":"IF('DATA ENTRY'!P42=\"\",0,AF1)","v":0},{"$f":"IF('DATA ENTRY'!Q42=\"\",0,AG1)","v":0},{"$f":"IF('DATA ENTRY'!R42=\"\",0,AH1)","v":0},0,{"$f":"HLOOKUP($AI$7,'DATA ENTRY'!$G$16:$R$60,T15,0)","v":{"$error":"#N/A"}},"",null,null,9,null,null,null,null,null,null,null,"FO","FORT LA BOSSE",11146840,19632,-4,11166468,0,459100,458758,626354,3959,10077055,null,"RM OF ELLICE-ARCHIE (101)","MUNICIPALITY OF TWO BORDERS (122)","RM OF PIPESTONE (162)","RM OF SIFTON (184)","RM OF WALLACE-WOODWORTH (199)","RM OF WHITEHEAD (202)","TOWN OF VIRDEN (461)",0,0,0,0,0,0,0,0,0,0,0,0,0,0,0,0,null,null,null,null,null,null,null,null,null,null,null,null,null,null,null,null,null,null,null,null,null,null,null,null,null,null,null,null,null,null,null,null,768913,366622,3364736,939318,3080023,27363,1530080,0,0,0,0,0,0,0,0,0,0,0,0,0,0,0,null,null,null,null,null,null,null,null,null,null,null,null,null,null,null,null,null,null,null,null,null,null,null,null,null,null,null,null,null,null,null,null,null,0,626354,"FO",null,-10057423,-10057423,"FO",null,{"$f":"+FW13+FW14","v":-1124539569}]
[null,null,12,"KELSEY","KE",2,"BO","R.M. of De Salaberry","Oct 31",null,null,null,null,null,null,null,null,null,null,14,7,{"$f":"+'DATA ENTRY'!A43","v":""},{"$f":"IF('DATA ENTRY'!G43=\"\",0,1)","v":0},{"$f":"IF('DATA ENTRY'!H43=\"\",0,2)","v":0},{"$f":"IF('DATA ENTRY'!I43=\"\",0,3)","v":0},{"$f":"IF('DATA ENTRY'!J43=\"\",0,4)","v":0},{"$f":"IF('DATA ENTRY'!K43=\"\",0,AA1)","v":0},{"$f":"IF('DATA ENTRY'!L43=\"\",0,AB1)","v":0},{"$f":"IF('DATA ENTRY'!M43=\"\",0,AC1)","v":0},{"$f":"IF('DATA ENTRY'!N43=\"\",0,AD1)","v":0},{"$f":"IF('DATA ENTRY'!O43=\"\",0,AE1)","v":0},{"$f":"IF('DATA ENTRY'!P43=\"\",0,AF1)","v":0},{"$f":"IF('DATA ENTRY'!Q43=\"\",0,AG1)","v":0},{"$f":"IF('DATA ENTRY'!R43=\"\",0,AH1)","v":0},0,{"$f":"HLOOKUP($AI$7,'DATA ENTRY'!$G$16:$R$60,T16,0)","v":{"$error":"#N/A"}},"",null,null,10,null,null,null,null,null,null,"W/O","FR","FRONTIER",null,null,null,3868724,null,159237,159237,179574,null,3529913,null,"RM OF LAKESHORE (143)","TOWN OF LEAF RAPIDS (428)","TOWN OF SNOW LAKE (448)","RM OF ALONSA (601)","TOWN OF CHURCHILL (603)","RM OF KELSEY (604)","RM OF GRAHAMDALE (606)","TOWN OF LYNN LAKE (614)","TOWN OF GRAND RAPIDS (615)","RM OF MOUNTAIN (617)","TOWN OF GILLAM (619)","INDIGENOUS AND NORTHERN RELATIONS (700)","INDIGENOUS AND NORTHERN RELATIONS (701)","INDIGENOUS AND NORTHERN RELATIONS (702)","INDIGENOUS AND NORTHERN RELATIONS (703)","INCORPORATED COMMUNITY OF CROSS LAKE (707)","INCORPORATED COMMUNITY OF SEYMOURVILLE (708)","NORWAY HOUSE-NORTHERN AFFAIRS ACT (710)","PIKWITONEI-NORTHERN AFFAIRS ACT (712)","SHERRIDON-NORTHERN AFFAIRS ACT (713)","INCORPORATED COMMUNITY OF SOUTH INDIAN LAKE (714)","THICKET PORTAGE-NORTHERN AFFAIRS ACT (715)","WABOWDEN-NORTHERN AFFAIRS ACT (716)","CRANE RIVER-NORTHERN AFFAIRS ACT (727)","MALLARD-NORTHERN AFFAIRS ACT (728)","MEADOW PORTAGE-NORTHERN AFFAIRS ACT (729)","SALT POINT-NORTHERN AFFAIRS ACT (731)","SPENCE LAKE-NORTHERN AFFAIRS ACT (732)","WATERHEN-NORTHERN AFFAIRS ACT (733)","BROCHET-NORTHERN AFFAIRS ACT (734)","EASTERVILLE-NORTHERN AFFAIRS ACT (736)","HERB LAKE LANDING-NORTHERN AFFAIRS ACT (738)","ILFORD-NORTHERN AFFAIRS ACT (739)","AGHAMING-NORTHERN AFFAIRS ACT (741)","BERENS RIVER-NORTHERN AFFAIRS ACT (744)","BISSETT-NORTHERN AFFAIRS ACT (746)","DALLAS-RED ROSE-NORTHERN AFFAIRS ACT (747)","DAUPHIN RIVER-NORTHERN AFFAIRS ACT (748)","FISHER BAY-NORTHERN AFFAIRS ACT (750)","HOMEBROOK - PEONAN POINT-NORTHERN AFFAIRS ACT (754)","LOON STRAITS-NORTHERN AFFAIRS ACT (761)","MANIGOTAGAN-NORTHERN AFFAIRS ACT (762)","MATHESON ISLAND-NORTHERN AFFAIRS ACT (763)","PINE DOCK-NORTHERN AFFAIRS ACT (765)","PRINCESS HARBOUR-NORTHERN AFFAIRS ACT (766)","BADEN-NORTHERN AFFAIRS ACT (781)","BARROWS-NORTHERN AFFAIRS ACT (782)","CAMPERVILLE-NORTHERN AFFAIRS ACT (783)","CORMORANT-NORTHERN AFFAIRS ACT (784)","DAWSON BAY-NORTHERN AFFAIRS ACT (785)","DUCK BAY-NORTHERN AFFAIRS ACT (786)","MOOSE LAKE-NORTHERN AFFAIRS ACT (787)","NATIONAL MILLS-NORTHERN AFFAIRS ACT (788)","PELICAN RAPIDS-NORTHERN AFFAIRS ACT (789)","RED DEER LAKE-NORTHERN AFFAIRS ACT (792)",347442,33508,563401,30964,532201,313220,183825,58508,183642,26304,103952,2148,101734,2371,6269,62225,11112,103078,12048,23837,5986,13926,86072,18865,5778,61663,1143,36519,54670,15047,5021,261,3353,1765,13006,115932,27446,3089,6575,17094,9258,125716,55187,23412,2347,1000,6337,43531,28195,4193,23802,6061,781,3847,1247,-1,179574,"FR","No DSFM",-2807773,-2807773,"FR"]
[null,null,13,"LAKESHORE","LA",8,"BO","Municipality of Emerson-Franklin","Oct 31",null,null,null,null,null,null,null,null,null,null,15,8,{"$f":"+'DATA ENTRY'!A44","v":""},{"$f":"IF('DATA ENTRY'!G44=\"\",0,1)","v":0},{"$f":"IF('DATA ENTRY'!H44=\"\",0,2)","v":0},{"$f":"IF('DATA ENTRY'!I44=\"\",0,3)","v":0},{"$f":"IF('DATA ENTRY'!J44=\"\",0,4)","v":0},{"$f":"IF('DATA ENTRY'!K44=\"\",0,AA1)","v":0},{"$f":"IF('DATA ENTRY'!L44=\"\",0,AB1)","v":0},{"$f":"IF('DATA ENTRY'!M44=\"\",0,AC1)","v":0},{"$f":"IF('DATA ENTRY'!N44=\"\",0,AD1)","v":0},{"$f":"IF('DATA ENTRY'!O44=\"\",0,AE1)","v":0},{"$f":"IF('DATA ENTRY'!P44=\"\",0,AF1)","v":0},{"$f":"IF('DATA ENTRY'!Q44=\"\",0,AG1)","v":0},{"$f":"IF('DATA ENTRY'!R44=\"\",0,AH1)","v":0},0,{"$f":"HLOOKUP($AI$7,'DATA ENTRY'!$G$16:$R$60,T17,0)","v":{"$error":"#N/A"}},"",null,null,11,null,null,null,null,null,null,"W/O","GA","GARDEN VALLEY",null,null,null,23160893,null,323087,323087,1256740,null,21581066,null,"MUNICIPALITY OF RHINELAND (164)","RM OF ROLAND (169)","RM OF STANLEY (190)","CITY OF WINKLER (463)",0,0,0,0,0,0,0,0,0,0,0,0,0,0,0,0,0,0,0,null,null,null,null,null,null,null,null,null,null,null,null,null,null,null,null,null,null,null,null,null,null,null,null,null,null,null,null,null,null,null,null,2888764,363883,6563062,11765356,0,0,0,0,0,0,0,0,0,0,0,0,0,0,0,0,0,0,null,null,null,null,null,null,null,null,null,null,null,null,null,null,null,null,null,null,null,null,null,null,null,null,null,null,null,null,null,null,null,null,null,1,1256740,"GA","No DSFM",-21581065,-21581065,"GA"]
[null,null,14,"LORD SELKIRK","LO",6,"BO","R.M. of La Broquerie","Sep 30",null,null,null,null,null,null,null,null,null,null,16,9,{"$f":"+'DATA ENTRY'!A45","v":""},{"$f":"IF('DATA ENTRY'!G45=\"\",0,1)","v":0},{"$f":"IF('DATA ENTRY'!H45=\"\",0,2)","v":0},{"$f":"IF('DATA ENTRY'!I45=\"\",0,3)","v":0},{"$f":"IF('DATA ENTRY'!J45=\"\",0,4)","v":0},{"$f":"IF('DATA ENTRY'!K45=\"\",0,AA1)","v":0},{"$f":"IF('DATA ENTRY'!L45=\"\",0,AB1)","v":0},{"$f":"IF('DATA ENTRY'!M45=\"\",0,AC1)","v":0},{"$f":"IF('DATA ENTRY'!N45=\"\",0,AD1)","v":0},{"$f":"IF('DATA ENTRY'!O45=\"\",0,AE1)","v":0},{"$f":"IF('DATA ENTRY'!P45=\"\",0,AF1)","v":0},{"$f":"IF('DATA ENTRY'!Q45=\"\",0,AG1)","v":0},{"$f":"IF('DATA ENTRY'!R45=\"\",0,AH1)","v":0},0,{"$f":"HLOOKUP($AI$7,'DATA ENTRY'!$G$16:$R$60,T18,0)","v":{"$error":"#N/A"}},"",null,null,12,null,null,null,null,null,null,null,"HA","HANOVER",41566641,493184,-76,42059749,0,754063,747252,2294347,-6358,39017697,null,"RM OF DE SALABERRY (119)","MUNICIPALITY OF EMERSON-FRANKLIN (127)","RM OF HANOVER (135)","RM OF LA BROQUERIE (138)","RM OF RITCHOT (165)","RM OF STE. ANNE (175)","RM OF TACHE (194)","TOWN OF NIVERVILLE (340)","CITY OF STEINBACH (451)",0,0,0,0,0,0,0,0,0,0,0,0,0,0,null,null,null,null,null,null,null,null,null,null,null,null,null,null,null,null,null,null,null,null,null,null,null,null,null,null,null,null,null,null,null,null,418568,2385,13041739,1467819,708130,1436891,2347388,4474580,15120196,0,0,0,0,0,0,0,0,0,0,0,0,0,null,null,null,null,null,null,null,null,null,null,null,null,null,null,null,null,null,null,null,null,null,null,null,null,null,null,null,null,null,null,null,null,null,1,2294347,"HA",null,-38524512,-38524512,"HA"]
[null,null,15,"LOUIS RIEL","LR",3,"BO","R.M. of Montcalm","Oct 31",null,null,null,null,null,null,null,null,null,null,17,10,{"$f":"+'DATA ENTRY'!A46","v":""},{"$f":"IF('DATA ENTRY'!G46=\"\",0,1)","v":0},{"$f":"IF('DATA ENTRY'!H46=\"\",0,2)","v":0},{"$f":"IF('DATA ENTRY'!I46=\"\",0,3)","v":0},{"$f":"IF('DATA ENTRY'!J46=\"\",0,4)","v":0},{"$f":"IF('DATA ENTRY'!K46=\"\",0,AA1)","v":0},{"$f":"IF('DATA ENTRY'!L46=\"\",0,AB1)","v":0},{"$f":"IF('DATA ENTRY'!M46=\"\",0,AC1)","v":0},{"$f":"IF('DATA ENTRY'!N46=\"\",0,AD1)","v":0},{"$f":"IF('DATA ENTRY'!O46=\"\",0,AE1)","v":0},{"$f":"IF('DATA ENTRY'!P46=\"\",0,AF1)","v":0},{"$f":"IF('DATA ENTRY'!Q46=\"\",0,AG1)","v":0},{"$f":"IF('DATA ENTRY'!R46=\"\",0,AH1)","v":0},0,{"$f":"HLOOKUP($AI$7,'DATA ENTRY'!$G$16:$R$60,T19,0)","v":{"$error":"#N/A"}},"",null,null,null,null,null,null,null,null,null,null,"IN","INTERLAKE",24154575,0,0,24154575,0,808470,808470,1280899,0,22065206,null,"RM OF ROCKWOOD (168)","RM OF ROSSER (172)","RM OF ST. ANDREWS (174)","RM OF ST. LAURENT (178)","RM OF WEST ST. PAUL (201)","RM OF WOODLANDS (206)","TOWN OF TEULON (363)","TOWN OF STONEWALL (453)","CITY OF WINNIPEG (590)","RM OF ARMSTRONG (602)",0,0,0,0,0,0,0,0,0,0,0,0,0,null,null,null,null,null,null,null,null,null,null,null,null,null,null,null,null,null,null,null,null,null,null,null,null,null,null,null,null,null,null,null,null,6749790,6976826,222854,1447,328540,3217983,609312,3786893,41064,130499,0,0,0,0,0,0,0,0,0,0,0,0,null,null,null,null,null,null,null,null,null,null,null,null,null,null,null,null,null,null,null,null,null,null,null,null,null,null,null,null,null,null,null,null,null,-2,1280899,"IN","No DSFM",-22065208,-22065208,"IN"]
[null,null,16,"MOUNTAIN VIEW","MO",11,"BO","R.M. of Morris","Oct 29",null,null,null,null,null,null,null,null,null,null,18,11,{"$f":"+'DATA ENTRY'!A47","v":""},{"$f":"IF('DATA ENTRY'!G47=\"\",0,1)","v":0},{"$f":"IF('DATA ENTRY'!H47=\"\",0,2)","v":0},{"$f":"IF('DATA ENTRY'!I47=\"\",0,3)","v":0},{"$f":"IF('DATA ENTRY'!J47=\"\",0,4)","v":0},{"$f":"IF('DATA ENTRY'!K47=\"\",0,AA1)","v":0},{"$f":"IF('DATA ENTRY'!L47=\"\",0,AB1)","v":0},{"$f":"IF('DATA ENTRY'!M47=\"\",0,AC1)","v":0},{"$f":"IF('DATA ENTRY'!N47=\"\",0,AD1)","v":0},{"$f":"IF('DATA ENTRY'!O47=\"\",0,AE1)","v":0},{"$f":"IF('DATA ENTRY'!P47=\"\",0,AF1)","v":0},{"$f":"IF('DATA ENTRY'!Q47=\"\",0,AG1)","v":0},{"$f":"IF('DATA ENTRY'!R47=\"\",0,AH1)","v":0},0,{"$f":"HLOOKUP($AI$7,'DATA ENTRY'!$G$16:$R$60,T20,0)","v":{"$error":"#N/A"}},"",null,null,null,null,null,null,null,null,null,null,"KE","KELSEY",5132153,0,0,5132153,0,154704,154704,719655,0,4257794,null,"TOWN OF THE PAS (457)","RM OF KELSEY (604)",0,0,0,0,0,0,0,0,0,0,0,0,0,0,0,0,0,0,0,0,0,null,null,null,null,null,null,null,null,null,null,null,null,null,null,null,null,null,null,null,null,null,null,null,null,null,null,null,null,null,null,null,null,2981347,1276447,0,0,0,0,0,0,0,0,0,0,0,0,0,0,0,0,0,0,0,0,null,null,null,null,null,null,null,null,null,null,null,null,null,null,null,null,null,null,null,null,null,null,null,null,null,null,null,null,null,null,null,null,null,0,719655,"KE",null,-4257794,-4257794,"KE"]
[null,null,17,"MYSTERY LAKE","MY",1,"BO","Municipality of Rhineland","Oct 29",null,null,null,null,null,null,null,null,null,null,19,12,{"$f":"+'DATA ENTRY'!A48","v":""},{"$f":"IF('DATA ENTRY'!G48=\"\",0,1)","v":0},{"$f":"IF('DATA ENTRY'!H48=\"\",0,2)","v":0},{"$f":"IF('DATA ENTRY'!I48=\"\",0,3)","v":0},{"$f":"IF('DATA ENTRY'!J48=\"\",0,4)","v":0},{"$f":"IF('DATA ENTRY'!K48=\"\",0,AA1)","v":0},{"$f":"IF('DATA ENTRY'!L48=\"\",0,AB1)","v":0},{"$f":"IF('DATA ENTRY'!M48=\"\",0,AC1)","v":0},{"$f":"IF('DATA ENTRY'!N48=\"\",0,AD1)","v":0},{"$f":"IF('DATA ENTRY'!O48=\"\",0,AE1)","v":0},{"$f":"IF('DATA ENTRY'!P48=\"\",0,AF1)","v":0},{"$f":"IF('DATA ENTRY'!Q48=\"\",0,AG1)","v":0},{"$f":"IF('DATA ENTRY'!R48=\"\",0,AH1)","v":0},0,{"$f":"HLOOKUP($AI$7,'DATA ENTRY'!$G$16:$R$60,T21,0)","v":{"$error":"#N/A"}},"",null,null,null,null,null,null,null,null,null,null,"LA","LAKESHORE",5944445,0,0,5944445,0,414194,414194,333928,null,5196323,null,"MUNICIPALITY OF BIFROST-RIVERTON (105)","RM OF COLDWELL (115)","RM OF ROCKWOOD (168)","RM OF ST. LAURENT (178)","MUNICIPALITY OF WEST INTERLAKE (185)","RM OF ARMSTRONG (602)","RM OF FISHER (605)","RM OF GRAHAMDALE (606)",0,0,0,0,0,0,0,0,0,0,0,0,0,0,0,null,null,null,null,null,null,null,null,null,null,null,null,null,null,null,null,null,null,null,null,null,null,null,null,null,null,null,null,null,null,null,null,39383,924569,8980,3893,1378886,493608,1442400,904604,0,0,0,0,0,0,0,0,0,0,0,0,0,0,null,null,null,null,null,null,null,null,null,null,null,null,null,null,null,null,null,null,null,null,null,null,null,null,null,null,null,null,null,null,null,null,null,0,333928,"LA",null,-5196323,-5196323,"LA"]
[null,null,18,"PARK WEST","PA",10,"BO","Town of Altona","Jul 30",null,null,null,null,null,null,null,null,null,null,20,13,{"$f":"+'DATA ENTRY'!A49","v":""},{"$f":"IF('DATA ENTRY'!G49=\"\",0,1)","v":0},{"$f":"IF('DATA ENTRY'!H49=\"\",0,2)","v":0},{"$f":"IF('DATA ENTRY'!I49=\"\",0,3)","v":0},{"$f":"IF('DATA ENTRY'!J49=\"\",0,4)","v":0},{"$f":"IF('DATA ENTRY'!K49=\"\",0,AA1)","v":0},{"$f":"IF('DATA ENTRY'!L49=\"\",0,AB1)","v":0},{"$f":"IF('DATA ENTRY'!M49=\"\",0,AC1)","v":0},{"$f":"IF('DATA ENTRY'!N49=\"\",0,AD1)","v":0},{"$f":"IF('DATA ENTRY'!O49=\"\",0,AE1)","v":0},{"$f":"IF('DATA ENTRY'!P49=\"\",0,AF1)","v":0},{"$f":"IF('DATA ENTRY'!Q49=\"\",0,AG1)","v":0},{"$f":"IF('DATA ENTRY'!R49=\"\",0,AH1)","v":0},0,{"$f":"HLOOKUP($AI$7,'DATA ENTRY'!$G$16:$R$60,T22,0)","v":{"$error":"#N/A"}},"",null,null,null,null,null,null,null,null,null,null,"LO","LORD SELKIRK",38498657,5118,0,38503775,0,2534539,2534539,2082440,0,33886796,null,"RM OF BROKENHEAD (110)","RM OF ST. ANDREWS (174)","RM OF ST. CLEMENTS (176)","RM OF VICTORIA BEACH (198)","CITY OF SELKIRK (447)","RM OF ALEXANDER (600)",0,0,0,0,0,0,0,0,0,0,0,0,0,0,0,0,0,null,null,null,null,null,null,null,null,null,null,null,null,null,null,null,null,null,null,null,null,null,null,null,null,null,null,null,null,null,null,null,null,80131,11428984,8627898,2353982,8266620,3129181,0,0,0,0,0,0,0,0,0,0,0,0,0,0,0,0,null,null,null,null,null,null,null,null,null,null,null,null,null,null,null,null,null,null,null,null,null,null,null,null,null,null,null,null,null,null,null,null,null,0,2082440,"LO",null,-33881678,-33881678,"LO"]
[null,null,19,"PEMBINA TRAILS","PE",3,"BO","R.M. of Piney","Oct 29",null,null,null,null,null,null,null,null,null,null,21,14,{"$f":"+'DATA ENTRY'!A50","v":""},{"$f":"IF('DATA ENTRY'!G50=\"\",0,1)","v":0},{"$f":"IF('DATA ENTRY'!H50=\"\",0,2)","v":0},{"$f":"IF('DATA ENTRY'!I50=\"\",0,3)","v":0},{"$f":"IF('DATA ENTRY'!J50=\"\",0,4)","v":0},{"$f":"IF('DATA ENTRY'!K50=\"\",0,AA1)","v":0},{"$f":"IF('DATA ENTRY'!L50=\"\",0,AB1)","v":0},{"$f":"IF('DATA ENTRY'!M50=\"\",0,AC1)","v":0},{"$f":"IF('DATA ENTRY'!N50=\"\",0,AD1)","v":0},{"$f":"IF('DATA ENTRY'!O50=\"\",0,AE1)","v":0},{"$f":"IF('DATA ENTRY'!P50=\"\",0,AF1)","v":0},{"$f":"IF('DATA ENTRY'!Q50=\"\",0,AG1)","v":0},{"$f":"IF('DATA ENTRY'!R50=\"\",0,AH1)","v":0},0,{"$f":"HLOOKUP($AI$7,'DATA ENTRY'!$G$16:$R$60,T23,0)","v":{"$error":"#N/A"}},"",null,null,null,null,null,null,null,null,null,null,"LR","LOUIS RIEL",119560210,13251455,-17479,132794186,0,3270502,2910676,6324643,-261272,123460313,null,"RM OF RITCHOT (165)","RM OF SPRINGFIELD (189)","CITY OF WINNIPEG (590)",0,0,0,0,0,0,0,0,0,0,0,0,0,0,0,0,0,0,0,0,null,null,null,null,null,null,null,null,null,null,null,null,null,null,null,null,null,null,null,null,null,null,null,null,null,null,null,null,null,null,null,null,292074,525561,122642678,0,0,0,0,0,0,0,0,0,0,0,0,0,0,0,0,0,0,0,null,null,null,null,null,null,null,null,null,null,null,null,null,null,null,null,null,null,null,null,null,null,null,null,null,null,null,null,null,null,null,null,null,0,6324643,"LR",null,-110208858,-110208858,"LR"]
[null,null,20,"PINE CREEK","PI",7,"BO","R.M. of Stuartburn","Oct 29",null,null,null,null,null,null,null,null,null,null,22,15,{"$f":"+'DATA ENTRY'!A51","v":""},{"$f":"IF('DATA ENTRY'!G51=\"\",0,1)","v":0},{"$f":"IF('DATA ENTRY'!H51=\"\",0,2)","v":0},{"$f":"IF('DATA ENTRY'!I51=\"\",0,3)","v":0},{"$f":"IF('DATA ENTRY'!J51=\"\",0,4)","v":0},{"$f":"IF('DATA ENTRY'!K51=\"\",0,AA1)","v":0},{"$f":"IF('DATA ENTRY'!L51=\"\",0,AB1)","v":0},{"$f":"IF('DATA ENTRY'!M51=\"\",0,AC1)","v":0},{"$f":"IF('DATA ENTRY'!N51=\"\",0,AD1)","v":0},{"$f":"IF('DATA ENTRY'!O51=\"\",0,AE1)","v":0},{"$f":"IF('DATA ENTRY'!P51=\"\",0,AF1)","v":0},{"$f":"IF('DATA ENTRY'!Q51=\"\",0,AG1)","v":0},{"$f":"IF('DATA ENTRY'!R51=\"\",0,AH1)","v":0},0,{"$f":"HLOOKUP($AI$7,'DATA ENTRY'!$G$16:$R$60,T24,0)","v":{"$error":"#N/A"}},"",null,null,null,null,null,null,null,null,null,null,"MO","MOUNTAIN VIEW",20304650,0,0,20304650,0,345180,345180,1088497,0,18870973,null,"RM OF DAUPHIN (118)","MUNICIPALITY OF ETHELBERT (126)","GRANDVIEW MUNICIPALITY (132)","RM OF LAKESHORE (143)","MUNICIPALITY OF MCCREARY (147)","RM OF MOSSEY RIVER (154)","RM OF RIDING MOUNTAIN WEST (181)","MUNICIPALITY OF HILLSBURG-ROBLIN-SHELL RIVER (182)","GILBERT PLAINS MUNICIPALITY (323)","CITY OF DAUPHIN (411)","RM OF MOUNTAIN (617)",0,0,0,0,0,0,0,0,0,0,0,0,null,null,null,null,null,null,null,null,null,null,null,null,null,null,null,null,null,null,null,null,null,null,null,null,null,null,null,null,null,null,null,null,3078363,489367,1819432,908099,8074,759693,952669,3862655,1977054,4805649,209919,0,0,0,0,0,0,0,0,0,0,0,null,null,null,null,null,null,null,null,null,null,null,null,null,null,null,null,null,null,null,null,null,null,null,null,null,null,null,null,null,null,null,null,null,-1,1088497,"MO",null,-18870974,-18870974,"MO"]
[null,null,21,"PORTAGE LA PRAIRIE","PO",8,"BR","R.M. of Cornwallis","Sep 30",null,null,null,null,null,null,null,null,null,null,23,16,{"$f":"+'DATA ENTRY'!A52","v":""},{"$f":"IF('DATA ENTRY'!G52=\"\",0,1)","v":0},{"$f":"IF('DATA ENTRY'!H52=\"\",0,2)","v":0},{"$f":"IF('DATA ENTRY'!I52=\"\",0,3)","v":0},{"$f":"IF('DATA ENTRY'!J52=\"\",0,4)","v":0},{"$f":"IF('DATA ENTRY'!K52=\"\",0,AA1)","v":0},{"$f":"IF('DATA ENTRY'!L52=\"\",0,AB1)","v":0},{"$f":"IF('DATA ENTRY'!M52=\"\",0,AC1)","v":0},{"$f":"IF('DATA ENTRY'!N52=\"\",0,AD1)","v":0},{"$f":"IF('DATA ENTRY'!O52=\"\",0,AE1)","v":0},{"$f":"IF('DATA ENTRY'!P52=\"\",0,AF1)","v":0},{"$f":"IF('DATA ENTRY'!Q52=\"\",0,AG1)","v":0},{"$f":"IF('DATA ENTRY'!R52=\"\",0,AH1)","v":0},0,{"$f":"HLOOKUP($AI$7,'DATA ENTRY'!$G$16:$R$60,T25,0)","v":{"$error":"#N/A"}},"",null,null,null,null,null,null,null,null,null,null,"MY","MYSTERY LAKE",9653878,274869,0,9928747,0,543025,526084,236479,-23038,9172281,null,"City of Thompson",0,0,0,0,0,0,0,0,0,0,0,0,0,0,0,0,0,0,0,0,0,0,null,null,null,null,null,null,null,null,null,null,null,null,null,null,null,null,null,null,null,null,null,null,null,null,null,null,null,null,null,null,null,null,9172281,0,0,0,0,0,0,0,0,0,0,0,0,0,0,0,0,0,0,0,0,0,null,null,null,null,null,null,null,null,null,null,null,null,null,null,null,null,null,null,null,null,null,null,null,null,null,null,null,null,null,null,null,null,null,0,236479,"MY","ok 1 mun.",-8897412,-8897412,"MY"]
[null,null,22,"PRAIRIE ROSE","PR",16,"BR","R.M. of Elton","Oct 29",null,null,null,null,null,null,null,null,null,null,24,17,{"$f":"+'DATA ENTRY'!A53","v":""},{"$f":"IF('DATA ENTRY'!G53=\"\",0,1)","v":0},{"$f":"IF('DATA ENTRY'!H53=\"\",0,2)","v":0},{"$f":"IF('DATA ENTRY'!I53=\"\",0,3)","v":0},{"$f":"IF('DATA ENTRY'!J53=\"\",0,4)","v":0},{"$f":"IF('DATA ENTRY'!K53=\"\",0,AA1)","v":0},{"$f":"IF('DATA ENTRY'!L53=\"\",0,AB1)","v":0},{"$f":"IF('DATA ENTRY'!M53=\"\",0,AC1)","v":0},{"$f":"IF('DATA ENTRY'!N53=\"\",0,AD1)","v":0},{"$f":"IF('DATA ENTRY'!O53=\"\",0,AE1)","v":0},{"$f":"IF('DATA ENTRY'!P53=\"\",0,AF1)","v":0},{"$f":"IF('DATA ENTRY'!Q53=\"\",0,AG1)","v":0},{"$f":"IF('DATA ENTRY'!R53=\"\",0,AH1)","v":0},0,{"$f":"HLOOKUP($AI$7,'DATA ENTRY'!$G$16:$R$60,T26,0)","v":{"$error":"#N/A"}},"",null,null,null,null,null,null,null,null,null,null,"PA","PARK WEST",11793259,240603,-70,12033792,0,769286,746973,602855,-13764,10675415,null,"RM OF ELLICE-ARCHIE (101)","RM OF OAKVIEW (107)","RM OF RIDING MOUNTAIN WEST (181)","RM OF YELLOWHEAD (183)","RM OF WALLACE-WOODWORTH (199)","HAMIOTA MUNICIPALITY (331)","ROSSBURN MUNICIPALITY (353)","PRAIRIE VIEW MUNICIPALITY (403)","MUNICIPALITY OF RUSSELL-BINSCARTH (445)","MUNICIPALITY OF HARRISON PARK (609)",0,0,0,0,0,0,0,0,0,0,0,0,0,null,null,null,null,null,null,null,null,null,null,null,null,null,null,null,null,null,null,null,null,null,null,null,null,null,null,null,null,null,null,null,null,486459,229035,1487253,1663378,349290,1485271,735368,2421696,1536029,281636,0,0,0,0,0,0,0,0,0,0,0,0,null,null,null,null,null,null,null,null,null,null,null,null,null,null,null,null,null,null,null,null,null,null,null,null,null,null,null,null,null,null,null,null,null,0,602855,"PA",null,-10434812,-10434812,"PA"]
[null,null,23,"PRAIRIE SPIRIT","PS",14,"BR","Municipality of North Cypress-Langford","Sep 30",null,null,null,null,null,null,null,null,null,null,25,18,{"$f":"+'DATA ENTRY'!A54","v":""},{"$f":"IF('DATA ENTRY'!G54=\"\",0,1)","v":0},{"$f":"IF('DATA ENTRY'!H54=\"\",0,2)","v":0},{"$f":"IF('DATA ENTRY'!I54=\"\",0,3)","v":0},{"$f":"IF('DATA ENTRY'!J54=\"\",0,4)","v":0},{"$f":"IF('DATA ENTRY'!K54=\"\",0,AA1)","v":0},{"$f":"IF('DATA ENTRY'!L54=\"\",0,AB1)","v":0},{"$f":"IF('DATA ENTRY'!M54=\"\",0,AC1)","v":0},{"$f":"IF('DATA ENTRY'!N54=\"\",0,AD1)","v":0},{"$f":"IF('DATA ENTRY'!O54=\"\",0,AE1)","v":0},{"$f":"IF('DATA ENTRY'!P54=\"\",0,AF1)","v":0},{"$f":"IF('DATA ENTRY'!Q54=\"\",0,AG1)","v":0},{"$f":"IF('DATA ENTRY'!R54=\"\",0,AH1)","v":0},0,{"$f":"HLOOKUP($AI$7,'DATA ENTRY'!$G$16:$R$60,T27,0)","v":{"$error":"#N/A"}},"",null,null,null,null,null,null,null,null,null,null,"PE","PEMBINA TRAILS",124742662,1602075,14586,126359323,0,2429845,2401827,6903885,-14227,117039820,null,"RM OF MACDONALD (146)","RM OF HEADINGLEY (208)","CITY OF WINNIPEG (590)",0,0,0,0,0,0,0,0,0,0,0,0,0,0,0,0,0,0,0,0,null,null,null,null,null,null,null,null,null,null,null,null,null,null,null,null,null,null,null,null,null,null,null,null,null,null,null,null,null,null,null,null,5731,960849,116073240,0,0,0,0,0,0,0,0,0,0,0,0,0,0,0,0,0,0,0,null,null,null,null,null,null,null,null,null,null,null,null,null,null,null,null,null,null,null,null,null,null,null,null,null,null,null,null,null,null,null,null,null,0,6903885,"PE",null,-115437745,-115437745,"PE"]
[null,null,24,"RED RIVER VALLEY","RE",12,"BR","Municipality of Oakland-Wawanesa","Oct 31",null,null,null,null,null,null,null,null,null,null,26,19,{"$f":"+'DATA ENTRY'!A55","v":""},{"$f":"IF('DATA ENTRY'!G55=\"\",0,1)","v":0},{"$f":"IF('DATA ENTRY'!H55=\"\",0,2)","v":0},{"$f":"IF('DATA ENTRY'!I55=\"\",0,3)","v":0},{"$f":"IF('DATA ENTRY'!J55=\"\",0,4)","v":0},{"$f":"IF('DATA ENTRY'!K55=\"\",0,AA1)","v":0},{"$f":"IF('DATA ENTRY'!L55=\"\",0,AB1)","v":0},{"$f":"IF('DATA ENTRY'!M55=\"\",0,AC1)","v":0},{"$f":"IF('DATA ENTRY'!N55=\"\",0,AD1)","v":0},{"$f":"IF('DATA ENTRY'!O55=\"\",0,AE1)","v":0},{"$f":"IF('DATA ENTRY'!P55=\"\",0,AF1)","v":0},{"$f":"IF('DATA ENTRY'!Q55=\"\",0,AG1)","v":0},{"$f":"IF('DATA ENTRY'!R55=\"\",0,AH1)","v":0},0,{"$f":"HLOOKUP($AI$7,'DATA ENTRY'!$G$16:$R$60,T28,0)","v":{"$error":"#N/A"}},"",null,null,null,null,null,null,null,null,null,null,"PI","PINE CREEK",10003008,29363,93,10032464,0,312678,312067,509512,974,9209300,null,"MUNICIPALITY OF GLENELLA-LANSDOWNE (142)","MUNICIPALITY OF NORTH CYPRESS-LANGFORD (155)","MUNICIPALITY OF NORTH NORFOLK (156)","RM OF PORTAGE LA PRAIRIE (163)","MUNICIPALITY OF NORFOLK TREHERNE (188)","RM OF VICTORIA (197)","MUNICIPALITY OF WESTLAKE-GLADSTONE (200)",0,0,0,0,0,0,0,0,0,0,0,0,0,0,0,0,null,null,null,null,null,null,null,null,null,null,null,null,null,null,null,null,null,null,null,null,null,null,null,null,null,null,null,null,null,null,null,null,373031,116943,4958795,33391,168349,103745,3455045,0,0,0,0,0,0,0,0,0,0,0,0,0,0,0,null,null,null,null,null,null,null,null,null,null,null,null,null,null,null,null,null,null,null,null,null,null,null,null,null,null,null,null,null,null,null,null,null,1,509512,"PI",null,-9179936,-9179936,"PI"]
[null,null,25,"RIVER EAST TRANSCONA","RI",3,"BR","Municipality of Glenboro-South Cypress","Oct 29",null,null,null,null,null,null,null,null,null,null,27,20,{"$f":"+'DATA ENTRY'!A56","v":""},{"$f":"IF('DATA ENTRY'!G56=\"\",0,1)","v":0},{"$f":"IF('DATA ENTRY'!H56=\"\",0,2)","v":0},{"$f":"IF('DATA ENTRY'!I56=\"\",0,3)","v":0},{"$f":"IF('DATA ENTRY'!J56=\"\",0,4)","v":0},{"$f":"IF('DATA ENTRY'!K56=\"\",0,AA1)","v":0},{"$f":"IF('DATA ENTRY'!L56=\"\",0,AB1)","v":0},{"$f":"IF('DATA ENTRY'!M56=\"\",0,AC1)","v":0},{"$f":"IF('DATA ENTRY'!N56=\"\",0,AD1)","v":0},{"$f":"IF('DATA ENTRY'!O56=\"\",0,AE1)","v":0},{"$f":"IF('DATA ENTRY'!P56=\"\",0,AF1)","v":0},{"$f":"IF('DATA ENTRY'!Q56=\"\",0,AG1)","v":0},{"$f":"IF('DATA ENTRY'!R56=\"\",0,AH1)","v":0},0,{"$f":"HLOOKUP($AI$7,'DATA ENTRY'!$G$16:$R$60,T29,0)","v":{"$error":"#N/A"}},"",null,null,null,null,null,null,null,null,null,null,"PO","PORTAGE LA PRAIRIE",21715398,127821,-2,21843217,0,270928,269506,1177653,-3937,20398573,null,"RM OF GREY (133)","MUNICIPALITY OF NORTH NORFOLK (156)","RM OF PORTAGE LA PRAIRIE (163)","RM OF ST. FRANCOIS XAVIER (177)","MUNICIPALITY OF NORFOLK TREHERNE (188)","MUNICIPALITY OF WESTLAKE-GLADSTONE (200)","RM OF WOODLANDS (206)","CITY PORTAGE LA PRAIRIE (550)",0,0,0,0,0,0,0,0,0,0,0,0,0,0,0,null,null,null,null,null,null,null,null,null,null,null,null,null,null,null,null,null,null,null,null,null,null,null,null,null,null,null,null,null,null,null,null,12884,90223,11710842,122031,1293,417901,134727,7908673,0,0,0,0,0,0,0,0,0,0,0,0,0,0,null,null,null,null,null,null,null,null,null,null,null,null,null,null,null,null,null,null,null,null,null,null,null,null,null,null,null,null,null,null,null,null,null,-1,1177653,"PO",null,-20270753,-20270753,"PO"]
[null,null,26,"ROLLING RIVER","RO",9,"BR","R.M. of Whitehead","Oct 31",null,null,null,null,null,null,null,null,null,null,28,21,{"$f":"+'DATA ENTRY'!A57","v":""},{"$f":"IF('DATA ENTRY'!G57=\"\",0,1)","v":0},{"$f":"IF('DATA ENTRY'!H57=\"\",0,2)","v":0},{"$f":"IF('DATA ENTRY'!I57=\"\",0,3)","v":0},{"$f":"IF('DATA ENTRY'!J57=\"\",0,4)","v":0},{"$f":"IF('DATA ENTRY'!K57=\"\",0,AA1)","v":0},{"$f":"IF('DATA ENTRY'!L57=\"\",0,AB1)","v":0},{"$f":"IF('DATA ENTRY'!M57=\"\",0,AC1)","v":0},{"$f":"IF('DATA ENTRY'!N57=\"\",0,AD1)","v":0},{"$f":"IF('DATA ENTRY'!O57=\"\",0,AE1)","v":0},{"$f":"IF('DATA ENTRY'!P57=\"\",0,AF1)","v":0},{"$f":"IF('DATA ENTRY'!Q57=\"\",0,AG1)","v":0},{"$f":"IF('DATA ENTRY'!R57=\"\",0,AH1)","v":0},0,{"$f":"HLOOKUP($AI$7,'DATA ENTRY'!$G$16:$R$60,T30,0)","v":{"$error":"#N/A"}},"",null,null,null,null,null,null,null,null,null,null,"PR","PRAIRIE ROSE",20232366,781928,-549,21013745,0,1085297,1058604,1215336,68559,18644553,null,"RM OF CARTIER (112)","RM OF DUFFERIN (120)","RM OF GREY (133)","MUNICIPALITY OF LORNE (144)","RM OF MACDONALD (146)","RM OF MORRIS (152)","MUNICIPALITY OF PEMBINA (161)","RM OF PORTAGE LA PRAIRIE (163)","RM OF ROLAND (169)","RM OF ST. FRANCOIS XAVIER (177)","RM OF ST. LAURENT (178)","MUNICIPALITY OF NORFOLK TREHERNE (188)","RM OF STANLEY (190)","RM OF THOMPSON (195)","RM OF WOODLANDS (206)","TOWN OF CARMAN (409)",0,0,0,0,0,0,0,null,null,null,null,null,null,null,null,null,null,null,null,null,null,null,null,null,null,null,null,null,null,null,null,null,null,null,null,null,null,null,null,3428215,3846270,2235787,383499,249812,500996,45441,395055,1821821,1458221,990612,2387,5174,1585763,12730,1682769,0,0,0,0,0,0,null,null,null,null,null,null,null,null,null,null,null,null,null,null,null,null,null,null,null,null,null,null,null,null,null,null,null,null,null,null,null,null,null,1,1215336,"PR",null,-17862624,-17862624,"PR"]
[null,null,27,"SEINE RIVER","SE",10,"BR","Riverdale Municipality","Sep 30",null,null,null,null,null,null,null,null,null,null,29,22,{"$f":"+'DATA ENTRY'!A58","v":""},{"$f":"IF('DATA ENTRY'!G58=\"\",0,1)","v":0},{"$f":"IF('DATA ENTRY'!H58=\"\",0,2)","v":0},{"$f":"IF('DATA ENTRY'!I58=\"\",0,3)","v":0},{"$f":"IF('DATA ENTRY'!J58=\"\",0,4)","v":0},{"$f":"IF('DATA ENTRY'!K58=\"\",0,AA1)","v":0},{"$f":"IF('DATA ENTRY'!L58=\"\",0,AB1)","v":0},{"$f":"IF('DATA ENTRY'!M58=\"\",0,AC1)","v":0},{"$f":"IF('DATA ENTRY'!N58=\"\",0,AD1)","v":0},{"$f":"IF('DATA ENTRY'!O58=\"\",0,AE1)","v":0},{"$f":"IF('DATA ENTRY'!P58=\"\",0,AF1)","v":0},{"$f":"IF('DATA ENTRY'!Q58=\"\",0,AG1)","v":0},{"$f":"IF('DATA ENTRY'!R58=\"\",0,AH1)","v":0},0,{"$f":"HLOOKUP($AI$7,'DATA ENTRY'!$G$16:$R$60,T31,0)","v":{"$error":"#N/A"}},"",null,null,null,null,null,null,null,null,null,null,"PS","PRAIRIE SPIRIT",16248003,1775908,-1,18023910,0,841411,763122,982940,79772,16119787,null,"RM OF ARGYLE (102)","RM OF DUFFERIN (120)","RM OF GREY (133)","MUNICIPALITY OF LORNE (144)","MUNICIPALITY OF LOUISE (145)","MUNICIPALITY OF PEMBINA (161)","RM OF PORTAGE LA PRAIRIE (163)","CARTWRIGHT-ROBLIN MUNICIPALITY (167)","MUNICIPALITY OF GLENBORO-SOUTH CYPRESS (187)","MUNICIPALITY OF NORFOLK TREHERNE (188)","RM OF STANLEY (190)","RM OF PRAIRIE LAKES (192)","RM OF THOMPSON (195)","RM OF VICTORIA (197)",0,0,0,0,0,0,0,0,0,null,null,null,null,null,null,null,null,null,null,null,null,null,null,null,null,null,null,null,null,null,null,null,null,null,null,null,null,null,null,null,null,1163053,110859,922025,3266911,2333448,3257598,41557,861318,1083216,1587569,853,462469,41370,987540,0,0,0,0,0,0,0,0,null,null,null,null,null,null,null,null,null,null,null,null,null,null,null,null,null,null,null,null,null,null,null,null,null,null,null,null,null,null,null,null,null,1,982940,"PS",null,-14343878,-14343878,"PS"]
[null,null,28,"SEVEN OAKS","SO",3,"BR","Municipality of Souris-Glenwood","Oct 31",null,null,null,null,null,null,null,null,null,null,30,23,{"$f":"+'DATA ENTRY'!A59","v":""},{"$f":"IF('DATA ENTRY'!G59=\"\",0,1)","v":0},{"$f":"IF('DATA ENTRY'!H59=\"\",0,2)","v":0},{"$f":"IF('DATA ENTRY'!I59=\"\",0,3)","v":0},{"$f":"IF('DATA ENTRY'!J59=\"\",0,4)","v":0},{"$f":"IF('DATA ENTRY'!K59=\"\",0,AA1)","v":0},{"$f":"IF('DATA ENTRY'!L59=\"\",0,AB1)","v":0},{"$f":"IF('DATA ENTRY'!M59=\"\",0,AC1)","v":0},{"$f":"IF('DATA ENTRY'!N59=\"\",0,AD1)","v":0},{"$f":"IF('DATA ENTRY'!O59=\"\",0,AE1)","v":0},{"$f":"IF('DATA ENTRY'!P59=\"\",0,AF1)","v":0},{"$f":"IF('DATA ENTRY'!Q59=\"\",0,AG1)","v":0},{"$f":"IF('DATA ENTRY'!R59=\"\",0,AH1)","v":0},0,{"$f":"HLOOKUP($AI$7,'DATA ENTRY'!$G$16:$R$60,T32,0)","v":{"$error":"#N/A"}},"",null,null,null,null,null,null,null,null,null,null,"RE","RED RIVER VALLEY",21258440,5343088,2471,26603999,0,818721,657633,1440652,-49130,24393756,null,"RM OF CARTIER (112)","RM OF DE SALABERRY (119)","RM OF DUFFERIN (120)","MUNICIPALITY OF EMERSON-FRANKLIN (127)","RM OF MACDONALD (146)","RM OF MONTCALM (151)","RM OF MORRIS (152)","MUNICIPALITY OF RHINELAND (164)","RM OF RITCHOT (165)","RM OF ROLAND (169)","VILLAGE ST. PIERRE-JOLYS (357)","TOWN OF MORRIS (435)",0,0,0,0,0,0,0,0,0,0,0,null,null,null,null,null,null,null,null,null,null,null,null,null,null,null,null,null,null,null,null,null,null,null,null,null,null,null,null,null,null,null,null,453909,3993980,28866,174330,10323372,1070036,5171337,19863,1265840,72691,583615,1235918,0,0,0,0,0,0,0,0,0,0,null,null,null,null,null,null,null,null,null,null,null,null,null,null,null,null,null,null,null,null,null,null,null,null,null,null,null,null,null,null,null,null,null,-1,0,"RE",null,-19050669,-19050669,"RE"]
[null,null,29,"SOUTHWEST HORIZON","SR",13,"BR","City of Brandon","Jun 30",null,null,null,null,null,null,null,null,null,null,31,24,{"$f":"+'DATA ENTRY'!A60","v":0},{"$f":"IF('DATA ENTRY'!G60=\"\",0,1)","v":0},{"$f":"IF('DATA ENTRY'!H60=\"\",0,2)","v":0},{"$f":"IF('DATA ENTRY'!I60=\"\",0,3)","v":0},{"$f":"IF('DATA ENTRY'!J60=\"\",0,4)","v":0},{"$f":"IF('DATA ENTRY'!K60=\"\",0,AA1)","v":0},{"$f":"IF('DATA ENTRY'!L60=\"\",0,AB1)","v":0},{"$f":"IF('DATA ENTRY'!M60=\"\",0,AC1)","v":0},{"$f":"IF('DATA ENTRY'!N60=\"\",0,AD1)","v":0},{"$f":"IF('DATA ENTRY'!O60=\"\",0,AE1)","v":0},{"$f":"IF('DATA ENTRY'!P60=\"\",0,AF1)","v":0},{"$f":"IF('DATA ENTRY'!Q60=\"\",0,AG1)","v":0},{"$f":"IF('DATA ENTRY'!R60=\"\",0,AH1)","v":0},0,{"$f":"HLOOKUP($AI$7,'DATA ENTRY'!$G$16:$R$60,T33,0)","v":{"$error":"#N/A"}},0,null,null,null,null,null,null,null,null,null,null,"RI","RIVER EAST TRANSCONA",107950952,2178220,4008,110133180,0,745262,730607,5899002,-109385,103598301,null,"RM OF EAST ST. PAUL (121)","RM OF ST. CLEMENTS (176)","CITY OF WINNIPEG (590)",0,0,0,0,0,0,0,0,0,0,0,0,0,0,0,0,0,0,0,0,null,null,null,null,null,null,null,null,null,null,null,null,null,null,null,null,null,null,null,null,null,null,null,null,null,null,null,null,null,null,null,null,12012208,2532224,89053869,0,0,0,0,0,0,0,0,0,0,0,0,0,0,0,0,0,0,0,null,null,null,null,null,null,null,null,null,null,null,null,null,null,null,null,null,null,null,null,null,null,null,null,null,null,null,null,null,null,null,null,null,0,5899002,"RI",null,-101420081,-101420081,"RI"]
[null,null,30,"ST. JAMES-ASSINIBOIA","ST",2,"EV","municipality of bifrost-riverton","Sep 30",null,null,null,null,null,null,null,null,null,null,null,null,null,null,null,null,null,null,null,null,null,null,null,null,null,null,null,null,null,null,null,null,null,null,null,null,null,null,"RO","ROLLING RIVER",14571699,17228,0,14588927,0,718967,717685,817725,-24558,13076793,null,"RM OF OAKVIEW (107)","MUNICIPALITY OF CLANWILLIAM-ERICKSON (114)","RM OF CORNWALLIS (116)","RM OF ELTON (124)","RM OF MINTO-ODANAH (159)","RM OF YELLOWHEAD (183)","TOWN OF MINNEDOSA (431)","RIVERDALE MUNICIPALITY (443)","MUNICIPALITY OF HARRISON PARK (609)",0,0,0,0,0,0,0,0,0,0,0,0,0,0,null,null,null,null,null,null,null,null,null,null,null,null,null,null,null,null,null,null,null,null,null,null,null,null,null,null,null,null,null,null,null,null,2628091,725209,697736,1743861,1708208,76356,1504609,1453128,2539596,0,0,0,0,0,0,0,0,0,0,0,0,0,null,null,null,null,null,null,null,null,null,null,null,null,null,null,null,null,null,null,null,null,null,null,null,null,null,null,null,null,null,null,null,null,null,-1,817725,"RO",null,-13059566,-13059566,"RO"]
[null,null,31,"SUNRISE","SU",12,"EV","rm of gimli","Aug 31",null,null,null,null,null,null,null,null,null,null,null,null,null,null,null,null,null,null,null,null,null,null,null,null,null,null,null,null,null,null,null,null,null,null,null,null,null,null,"SE","SEINE RIVER",27814823,6780172,-6596,34588399,0,1289547,1027613,2052661,-287005,31533196,null,"RM OF LA BROQUERIE (138)","RM OF MACDONALD (146)","RM OF RITCHOT (165)","RM OF STE. ANNE (175)","RM OF SPRINGFIELD (189)","RM OF TACHE (194)","TOWN OF STE. ANNE (351)","CITY OF WINNIPEG (590)","RM OF PINEY (610)","RM OF REYNOLDS (611)",0,0,0,0,0,0,0,0,0,0,0,0,0,null,null,null,null,null,null,null,null,null,null,null,null,null,null,null,null,null,null,null,null,null,null,null,null,null,null,null,null,null,null,null,null,2724103,3975490,6406251,3681939,67429,7260752,1548413,4937599,511280,419941,0,0,0,0,0,0,0,0,0,0,0,0,null,null,null,null,null,null,null,null,null,null,null,null,null,null,null,null,null,null,null,null,null,null,null,null,null,null,null,null,null,null,null,null,null,-1,2052661,"SE",null,-24753025,-24753025,"SE"]
[null,null,32,"SWAN VALLEY","SW",4,"EV","rm of rockwood","Oct 29",null,null,null,null,null,null,null,null,null,null,null,null,null,null,null,null,null,null,null,null,null,null,null,null,null,null,null,null,null,null,null,null,null,null,null,null,null,null,"SO","SEVEN OAKS",76703978,347123,-410,77050691,0,2681917,2675142,4017116,-15107,70366765,null,"RM OF ST. ANDREWS (174)","RM OF WEST ST. PAUL (201)","CITY OF WINNIPEG (590)",0,0,0,0,0,0,0,0,0,0,0,0,0,0,0,0,0,0,0,0,null,null,null,null,null,null,null,null,null,null,null,null,null,null,null,null,null,null,null,null,null,null,null,null,null,null,null,null,null,null,null,null,510296,11154675,58701794,0,0,0,0,0,0,0,0,0,0,0,0,0,0,0,0,0,0,0,null,null,null,null,null,null,null,null,null,null,null,null,null,null,null,null,null,null,null,null,null,null,null,null,null,null,null,null,null,null,null,null,null,0,0,"SO",null,-70019642,-70019642,"SO"]
[null,null,33,"TURTLE MOUNTAIN","TM",6,"EV","rm of st andrews","Oct 31",null,null,null,null,null,null,null,null,null,null,null,null,null,null,null,null,null,null,null,null,null,null,null,null,null,null,null,null,null,null,null,null,null,null,null,null,null,null,"SR","SOUTHWEST HORIZON",15844398,0,-13,15844385,0,713853,712439,898679,-9711,14241564,null,"MUNICIPALITY OF BRENDA-WASKADA (109)","MUNICIPALITY OF GRASSLAND (111)","RM OF CORNWALLIS (116)","MUNICIPALITY OF TWO BORDERS (122)","MUNICIPALITY OF BOISSEVAIN-MORTON (153)","MUNICIPALITY OF OAKLAND-WAWANESA (157)","RM OF SIFTON (184)","MUNICIPALITY OF GLENBORO-SOUTH CYPRESS (187)","RM OF PRAIRIE LAKES (192)","RM OF WHITEHEAD (202)","MUNICIPALITY OF DELORAINE-WINCHESTER (205)","TOWN OF MELITA (429)","MUNICIPALITY OF SOURIS-GLENWOOD (449)",0,0,0,0,0,0,0,0,0,0,null,null,null,null,null,null,null,null,null,null,null,null,null,null,null,null,null,null,null,null,null,null,null,null,null,null,null,null,null,null,null,null,2329316,1769534,52865,3112233,102899,1596648,318770,308617,136580,224474,1570584,383589,2335455,0,0,0,0,0,0,0,0,0,null,null,null,null,null,null,null,null,null,null,null,null,null,null,null,null,null,null,null,null,null,null,null,null,null,null,null,null,null,null,null,null,null,0,898679,"SR",null,-14241564,-14241564,"SR"]
[null,null,34,"TURTLE RIVER","TR",7,"EV","town of arborg","Sep 30",null,null,null,null,null,null,null,null,null,null,null,null,null,null,null,null,null,null,null,null,null,null,null,null,null,null,null,null,null,null,null,null,null,null,null,null,null,null,"ST","ST. JAMES-ASSINIBOIA",74767998,875286,-17980,75625304,0,1772637,1752308,4131537,63474,69657656,null,"RM OF HEADINGLEY (208)","CITY OF WINNIPEG (590)",0,0,0,0,0,0,0,0,0,0,0,0,0,0,0,0,0,0,0,0,0,null,null,null,null,null,null,null,null,null,null,null,null,null,null,null,null,null,null,null,null,null,null,null,null,null,null,null,null,null,null,null,null,7128499,62529157,0,0,0,0,0,0,0,0,0,0,0,0,0,0,0,0,0,0,0,0,null,null,null,null,null,null,null,null,null,null,null,null,null,null,null,null,null,null,null,null,null,null,null,null,null,null,null,null,null,null,null,null,null,0,4131537,"ST",null,-68782370,-68782370,"ST"]
[null,null,35,"WESTERN","WE",5,"EV","village of dunnottar","Jun 30",null,null,null,null,null,null,null,null,null,null,null,null,null,null,null,null,null,null,null,null,null,null,null,null,null,null,null,null,null,null,null,null,null,null,null,null,null,null,"SU","SUNRISE",45481523,599198,-120,46080601,0,1489849,1465596,2296766,-78370,42372356,null,"RM OF BROKENHEAD (110)","RM OF LAC DU BONNET (139)","RM OF RITCHOT (165)","RM OF ST. CLEMENTS (176)","RM OF SPRINGFIELD (189)","RM OF TACHE (194)","RM OF WHITEMOUTH (203)","TOWN OF LAC DU BONNET (333)","TOWN POWERVIEW-PINEFALLS (347)","TOWN OF BEAUSEJOUR (401)","RM OF ALEXANDER (600)","RM OF REYNOLDS (611)",0,0,0,0,0,0,0,0,0,0,0,null,null,null,null,null,null,null,null,null,null,null,null,null,null,null,null,null,null,null,null,null,null,null,null,null,null,null,null,null,null,null,null,4990721,6058079,149403,1027063,20183904,441032,1296990,805153,415278,2335318,3163980,1505435,0,0,0,0,0,0,0,0,0,0,null,null,null,null,null,null,null,null,null,null,null,null,null,null,null,null,null,null,null,null,null,null,null,null,null,null,null,null,null,null,null,null,null,0,2296766,"SU",null,-41773158,-41773158,"SU"]
[null,null,36,"WINNIPEG","WI",1,"EV","town of winnipeg beach","Aug 31",null,null,null,null,null,null,null,null,null,null,null,null,null,null,null,null,null,null,null,null,null,null,null,null,null,null,null,null,null,null,null,null,null,null,null,null,null,"W/O","SW","SWAN VALLEY",null,null,null,10199573,null,994366,994366,659197,null,8546010,null,"MUNICIPALITY OF MINITONAS-BOWSMAN (149)","MUNICIPALITY OF SWAN VALLEY WEST (193)","TOWN OF SWAN RIVER (455)","RM OF MOUNTAIN (617)",0,0,0,0,0,0,0,0,0,0,0,0,0,0,0,0,0,0,0,null,null,null,null,null,null,null,null,null,null,null,null,null,null,null,null,null,null,null,null,null,null,null,null,null,null,null,null,null,null,null,null,2211588,3545504,2304543,484375,0,0,0,0,0,0,0,0,0,0,0,0,0,0,0,0,0,0,null,null,null,null,null,null,null,null,null,null,null,null,null,null,null,null,null,null,null,null,null,null,null,null,null,null,null,null,null,null,null,null,null,0,659197,"SW","No DSFM",0,-8546010,"SW"]
[null,null,37,"WHITESHELL","XW",1,"EV","rm of armstrong","Oct 31",null,null,null,null,null,null,null,null,null,null,null,null,null,null,null,null,null,null,null,null,null,null,null,null,null,null,null,null,null,null,null,null,null,null,null,null,null,"W/O","TM","TURTLE MOUNTAIN",null,null,null,8414018,0,0,0,461002,null,7953016,null,"RM OF ARGYLE (102)","MUNICIPALITY OF GRASSLAND (111)","MUNICIPALITY OF BOISSEVAIN-MORTON (153)","CARTWRIGHT-ROBLIN MUNICIPALITY (167)","RM OF PRAIRIE LAKES (192)","KILLARNEY-TURTLE MOUNTAIN (196)",0,0,0,0,0,0,0,0,0,0,0,0,0,0,0,0,0,null,null,null,null,null,null,null,null,null,null,null,null,null,null,null,null,null,null,null,null,null,null,null,null,null,null,null,null,null,null,null,null,78569,537275,2473490,170897,1368774,3324012,0,0,0,0,0,0,0,0,0,0,0,0,0,0,0,0,null,null,null,null,null,null,null,null,null,null,null,null,null,null,null,null,null,null,null,null,null,null,null,null,null,null,null,null,null,null,null,null,null,-1,461002,"TM","No DSFM",-7953017,-7953017,"TM"]
[null,null,null,null,null,null,"EV","rm of fisher","Oct 31",null,null,null,null,null,null,null,null,null,null,null,null,null,null,null,null,null,null,null,null,null,null,null,null,null,null,null,null,null,null,null,null,null,null,null,null,null,null,"TR","TURTLE RIVER",4321213,253183,0,4574396,0,271971,263938,318570,84517,3899338,null,"MUNICIPALITY OF GLENELLA-LANSDOWNE (142)","RM OF LAKESHORE (143)","MUNICIPALITY OF MCCREARY (147)","RM OF ROSEDALE (170)","MUNICIPALITY OF WESTLAKE-GLADSTONE (200)","MUNICIPALITY OF STE. ROSE (359)","RM OF ALONSA (601)",0,0,0,0,0,0,0,0,0,0,0,0,0,0,0,0,null,null,null,null,null,null,null,null,null,null,null,null,null,null,null,null,null,null,null,null,null,null,null,null,null,null,null,null,null,null,null,null,570454,196456,686734,327403,27844,1132785,957662,0,0,0,0,0,0,0,0,0,0,0,0,0,0,0,null,null,null,null,null,null,null,null,null,null,null,null,null,null,null,null,null,null,null,null,null,null,null,null,null,null,null,null,null,null,null,null,null,0,318570,"TR",null,-3646155,-3646155,"TR"]
[null,null,null,null,null,{"$f":"MAX(F6:F42)","v":23},"FL","City of Flin Flon, Municip","Dec 31",null,null,null,null,null,null,null,null,null,null,null,null,null,null,null,null,null,null,null,null,null,null,null,null,null,null,null,null,null,null,null,null,null,null,null,null,null,"W/O","WE","WESTERN",null,null,null,12015200,0,0,0,582992,null,11432208,null,"MUNICIPALITY OF PEMBINA (161)","RM OF ROLAND (169)","RM OF STANLEY (190)","RM OF THOMPSON (195)","CITY OF MORDEN (433)",0,0,0,0,0,0,0,0,0,0,0,0,0,0,0,0,0,0,null,null,null,null,null,null,null,null,null,null,null,null,null,null,null,null,null,null,null,null,null,null,null,null,null,null,null,null,null,null,null,null,212019,81065,3051533,214376,7873214,0,0,0,0,0,0,0,0,0,0,0,0,0,0,0,0,0,null,null,null,null,null,null,null,null,null,null,null,null,null,null,null,null,null,null,null,null,null,null,null,null,null,null,null,null,null,null,null,null,null,1,582992,"WE","No DSFM",-11432207,-11432207,"WE"]
[null,null,null,null,null,null,"FO","Rm of Ellice-Archie","Oct 31",null,null,null,null,null,null,null,null,null,null,null,null,null,null,null,null,null,null,null,null,null,null,null,null,null,null,null,null,null,null,null,null,null,null,null,null,null,null,"WI","WINNIPEG",218404652,3309198,841,221714691,0,4790198,4729813,12422614,179250,204322629,null,"City of Winnipeg",0,0,0,0,0,0,0,0,0,0,0,0,0,0,0,0,0,0,0,0,0,0,null,null,null,null,null,null,null,null,null,null,null,null,null,null,null,null,null,null,null,null,null,null,null,null,null,null,null,null,null,null,null,null,204322629,0,0,0,0,0,0,0,0,0,0,0,0,0,0,0,0,0,0,0,0,0,null,null,null,null,null,null,null,null,null,null,null,null,null,null,null,null,null,null,null,null,null,null,null,null,null,null,null,null,null,null,null,null,null,{"$f":"+BG44-SUM(DL44:FN44)","v":0},12422614,{"$f":"+AV44","v":"WI"},"ok 1 mun.",{"$f":"IF(AND(FO44=0,FR44=\"No DSFM\"),0,AY44-SUM(DL44:EH44))","v":-201013431},{"$f":"+AY44-SUM(DL44:EH44)","v":-201013431},{"$f":"+AV44","v":"WI"}]
[null,null,null,null,null,null,"FO","Municipality of Two Borders","Oct 31",null,null,null,null,null,null,null,null,null,null,null,null,null,null,null,null,null,null,null,null,null,null,null,null,null,null,null,null,null,null,null,null,null,null,null,null,null,null,"XW","WHITESHELL",null,null,null,2800132,null,22588,22588,88370,null,2689174,null,"L.G.D. of Pinawa",0,0,0,0,0,0,0,0,0,0,0,0,0,0,0,0,0,0,0,0,0,0,null,null,null,null,null,null,null,null,null,null,null,null,null,null,null,null,null,null,null,null,null,null,null,null,null,null,null,null,null,null,null,null,2689174,0,0,0,0,0,0,0,0,0,0,0,0,0,0,0,0,0,0,0,0,0,null,null,null,null,null,null,null,null,null,null,null,null,null,null,null,null,null,null,null,null,null,null,null,null,null,null,null,null,null,null,null,null,null,0,12422614,"XW","ok 1 mun.",-2689174,-2689174,"XW"]
[null,null,null,null,null,null,"FO","R.M. of Pipestone","Oct 31"]
[null,null,null,null,null,null,"FO","R.M. of Sifton","Oct 31"]
[null,null,null,null,null,null,"FO","R.M. of Wallace-Woodworth","Oct 29",null,null,null,null,null,null,null,null,null,null,null,null,null,null,null,null,null,null,null,null,null,null,null,null,null,null,null,null,null,null,null,null,null,null,null,null,null,null,{"$f":"IF(DIVNUM=1,0,VLOOKUP(DIVNUM2,$AV$9:$FN$45,AV1))","v":0},{"$f":"IF(DIVNUM=1,0,VLOOKUP(DIVNUM2,$AV$9:$FN$45,AW1))","v":0},{"$f":"IF(DIVNUM=1,0,VLOOKUP(DIVNUM2,$AV$9:$FN$45,AX1))","v":0},{"$f":"IF(DIVNUM=1,0,VLOOKUP(DIVNUM2,$AV$9:$FN$45,AY1))","v":0},{"$f":"IF(DIVNUM=1,0,VLOOKUP(DIVNUM2,$AV$9:$FN$45,AZ1))","v":0},{"$f":"IF(DIVNUM=1,0,VLOOKUP(DIVNUM2,$AV$9:$FN$45,BA1))","v":0},{"$f":"IF(DIVNUM=1,0,VLOOKUP(DIVNUM2,$AV$9:$FN$45,BB1))","v":0},{"$f":"IF(DIVNUM=1,0,VLOOKUP(DIVNUM2,$AV$9:$FN$45,BC1))","v":0},{"$f":"IF(DIVNUM=1,0,VLOOKUP(DIVNUM2,$AV$9:$FN$45,BD1))","v":0},{"$f":"IF(DIVNUM=1,0,VLOOKUP(DIVNUM2,$AV$9:$FN$45,BE1))","v":0},{"$f":"IF(DIVNUM=1,0,VLOOKUP(DIVNUM2,$AV$9:$FN$45,BF1))","v":0},{"$f":"IF(DIVNUM=1,0,VLOOKUP(DIVNUM2,$AV$9:$FN$45,BG1))","v":0},null,{"$f":"IF(DIVNUM=1,0,VLOOKUP(DIVNUM2,$AV$9:$FN$45,BI1))","v":0},{"$f":"IF(DIVNUM=1,0,VLOOKUP(DIVNUM2,$AV$9:$FN$45,BJ1))","v":0},{"$f":"IF(DIVNUM=1,0,VLOOKUP(DIVNUM2,$AV$9:$FN$45,BK1))","v":0},{"$f":"IF(DIVNUM=1,0,VLOOKUP(DIVNUM2,$AV$9:$FN$45,BL1))","v":0},{"$f":"IF(DIVNUM=1,0,VLOOKUP(DIVNUM2,$AV$9:$FN$45,BM1))","v":0},{"$f":"IF(DIVNUM=1,0,VLOOKUP(DIVNUM2,$AV$9:$FN$45,BN1))","v":0},{"$f":"IF(DIVNUM=1,0,VLOOKUP(DIVNUM2,$AV$9:$FN$45,BO1))","v":0},{"$f":"IF(DIVNUM=1,0,VLOOKUP(DIVNUM2,$AV$9:$FN$45,BP1))","v":0},{"$f":"IF(DIVNUM=1,0,VLOOKUP(DIVNUM2,$AV$9:$FN$45,BQ1))","v":0},{"$f":"IF(DIVNUM=1,0,VLOOKUP(DIVNUM2,$AV$9:$FN$45,BR1))","v":0},{"$f":"IF(DIVNUM=1,0,VLOOKUP(DIVNUM2,$AV$9:$FN$45,BS1))","v":0},{"$f":"IF(DIVNUM=1,0,VLOOKUP(DIVNUM2,$AV$9:$FN$45,BT1))","v":0},{"$f":"IF(DIVNUM=1,0,VLOOKUP(DIVNUM2,$AV$9:$FN$45,BU1))","v":0},{"$f":"IF(DIVNUM=1,0,VLOOKUP(DIVNUM2,$AV$9:$FN$45,BV1))","v":0},{"$f":"IF(DIVNUM=1,0,VLOOKUP(DIVNUM2,$AV$9:$FN$45,BW1))","v":0},{"$f":"IF(DIVNUM=1,0,VLOOKUP(DIVNUM2,$AV$9:$FN$45,BX1))","v":0},{"$f":"IF(DIVNUM=1,0,VLOOKUP(DIVNUM2,$AV$9:$FN$45,BY1))","v":0},{"$f":"IF(DIVNUM=1,0,VLOOKUP(DIVNUM2,$AV$9:$FN$45,BZ1))","v":0},{"$f":"IF(DIVNUM=1,0,VLOOKUP(DIVNUM2,$AV$9:$FN$45,CA1))","v":0},{"$f":"IF(DIVNUM=1,0,VLOOKUP(DIVNUM2,$AV$9:$FN$45,CB1))","v":0},{"$f":"IF(DIVNUM=1,0,VLOOKUP(DIVNUM2,$AV$9:$FN$45,CC1))","v":0},{"$f":"IF(DIVNUM=1,0,VLOOKUP(DIVNUM2,$AV$9:$FN$45,CD1))","v":0},{"$f":"IF(DIVNUM=1,0,VLOOKUP(DIVNUM2,$AV$9:$FN$45,CE1))","v":0},{"$f":"IF(DIVNUM=1,0,VLOOKUP(DIVNUM2,$AV$9:$FN$45,CF1))","v":0},{"$f":"IF(DIVNUM=1,0,VLOOKUP(DIVNUM2,$AV$9:$FN$45,CG1))","v":0},{"$f":"IF(DIVNUM=1,0,VLOOKUP(DIVNUM2,$AV$9:$FN$45,CH1))","v":0},{"$f":"IF(DIVNUM=1,0,VLOOKUP(DIVNUM2,$AV$9:$FN$45,CI1))","v":0},{"$f":"IF(DIVNUM=1,0,VLOOKUP(DIVNUM2,$AV$9:$FN$45,CJ1))","v":0},{"$f":"IF(DIVNUM=1,0,VLOOKUP(DIVNUM2,$AV$9:$FN$45,CK1))","v":0},{"$f":"IF(DIVNUM=1,0,VLOOKUP(DIVNUM2,$AV$9:$FN$45,CL1))","v":0},{"$f":"IF(DIVNUM=1,0,VLOOKUP(DIVNUM2,$AV$9:$FN$45,CM1))","v":0},{"$f":"IF(DIVNUM=1,0,VLOOKUP(DIVNUM2,$AV$9:$FN$45,CN1))","v":0},{"$f":"IF(DIVNUM=1,0,VLOOKUP(DIVNUM2,$AV$9:$FN$45,CO1))","v":0},{"$f":"IF(DIVNUM=1,0,VLOOKUP(DIVNUM2,$AV$9:$FN$45,CP1))","v":0},{"$f":"IF(DIVNUM=1,0,VLOOKUP(DIVNUM2,$AV$9:$FN$45,CQ1))","v":0},{"$f":"IF(DIVNUM=1,0,VLOOKUP(DIVNUM2,$AV$9:$FN$45,CR1))","v":0},{"$f":"IF(DIVNUM=1,0,VLOOKUP(DIVNUM2,$AV$9:$FN$45,CS1))","v":0},{"$f":"IF(DIVNUM=1,0,VLOOKUP(DIVNUM2,$AV$9:$FN$45,CT1))","v":0},{"$f":"IF(DIVNUM=1,0,VLOOKUP(DIVNUM2,$AV$9:$FN$45,CU1))","v":0},{"$f":"IF(DIVNUM=1,0,VLOOKUP(DIVNUM2,$AV$9:$FN$45,CV1))","v":0},{"$f":"IF(DIVNUM=1,0,VLOOKUP(DIVNUM2,$AV$9:$FN$45,CW1))","v":0},{"$f":"IF(DIVNUM=1,0,VLOOKUP(DIVNUM2,$AV$9:$FN$45,CX1))","v":0},{"$f":"IF(DIVNUM=1,0,VLOOKUP(DIVNUM2,$AV$9:$FN$45,CY1))","v":0},{"$f":"IF(DIVNUM=1,0,VLOOKUP(DIVNUM2,$AV$9:$FN$45,CZ1))","v":0},{"$f":"IF(DIVNUM=1,0,VLOOKUP(DIVNUM2,$AV$9:$FN$45,DA1))","v":0},{"$f":"IF(DIVNUM=1,0,VLOOKUP(DIVNUM2,$AV$9:$FN$45,DB1))","v":0},{"$f":"IF(DIVNUM=1,0,VLOOKUP(DIVNUM2,$AV$9:$FN$45,DC1))","v":0},{"$f":"IF(DIVNUM=1,0,VLOOKUP(DIVNUM2,$AV$9:$FN$45,DD1))","v":0},{"$f":"IF(DIVNUM=1,0,VLOOKUP(DIVNUM2,$AV$9:$FN$45,DE1))","v":0},{"$f":"IF(DIVNUM=1,0,VLOOKUP(DIVNUM2,$AV$9:$FN$45,DF1))","v":0},{"$f":"IF(DIVNUM=1,0,VLOOKUP(DIVNUM2,$AV$9:$FN$45,DG1))","v":0},{"$f":"IF(DIVNUM=1,0,VLOOKUP(DIVNUM2,$AV$9:$FN$45,DH1))","v":0},{"$f":"IF(DIVNUM=1,0,VLOOKUP(DIVNUM2,$AV$9:$FN$45,DI1))","v":0},{"$f":"IF(DIVNUM=1,0,VLOOKUP(DIVNUM2,$AV$9:$FN$45,DJ1))","v":0},{"$f":"IF(DIVNUM=1,0,VLOOKUP(DIVNUM2,$AV$9:$FN$45,DK1))","v":0},{"$f":"IF(DIVNUM=1,0,VLOOKUP(DIVNUM2,$AV$9:$FN$45,DL1))","v":0},{"$f":"IF(DIVNUM=1,0,VLOOKUP(DIVNUM2,$AV$9:$FN$45,DM1))","v":0},{"$f":"IF(DIVNUM=1,0,VLOOKUP(DIVNUM2,$AV$9:$FN$45,DN1))","v":0},{"$f":"IF(DIVNUM=1,0,VLOOKUP(DIVNUM2,$AV$9:$FN$45,DO1))","v":0},{"$f":"IF(DIVNUM=1,0,VLOOKUP(DIVNUM2,$AV$9:$FN$45,DP1))","v":0},{"$f":"IF(DIVNUM=1,0,VLOOKUP(DIVNUM2,$AV$9:$FN$45,DQ1))","v":0},{"$f":"IF(DIVNUM=1,0,VLOOKUP(DIVNUM2,$AV$9:$FN$45,DR1))","v":0},{"$f":"IF(DIVNUM=1,0,VLOOKUP(DIVNUM2,$AV$9:$FN$45,DS1))","v":0},{"$f":"IF(DIVNUM=1,0,VLOOKUP(DIVNUM2,$AV$9:$FN$45,DT1))","v":0},{"$f":"IF(DIVNUM=1,0,VLOOKUP(DIVNUM2,$AV$9:$FN$45,DU1))","v":0},{"$f":"IF(DIVNUM=1,0,VLOOKUP(DIVNUM2,$AV$9:$FN$45,DV1))","v":0},{"$f":"IF(DIVNUM=1,0,VLOOKUP(DIVNUM2,$AV$9:$FN$45,DW1))","v":0},{"$f":"IF(DIVNUM=1,0,VLOOKUP(DIVNUM2,$AV$9:$FN$45,DX1))","v":0},{"$f":"IF(DIVNUM=1,0,VLOOKUP(DIVNUM2,$AV$9:$FN$45,DY1))","v":0},{"$f":"IF(DIVNUM=1,0,VLOOKUP(DIVNUM2,$AV$9:$FN$45,DZ1))","v":0},{"$f":"IF(DIVNUM=1,0,VLOOKUP(DIVNUM2,$AV$9:$FN$45,EA1))","v":0},{"$f":"IF(DIVNUM=1,0,VLOOKUP(DIVNUM2,$AV$9:$FN$45,EB1))","v":0},{"$f":"IF(DIVNUM=1,0,VLOOKUP(DIVNUM2,$AV$9:$FN$45,EC1))","v":0},{"$f":"IF(DIVNUM=1,0,VLOOKUP(DIVNUM2,$AV$9:$FN$45,ED1))","v":0},{"$f":"IF(DIVNUM=1,0,VLOOKUP(DIVNUM2,$AV$9:$FN$45,EE1))","v":0},{"$f":"IF(DIVNUM=1,0,VLOOKUP(DIVNUM2,$AV$9:$FN$45,EF1))","v":0},{"$f":"IF(DIVNUM=1,0,VLOOKUP(DIVNUM2,$AV$9:$FN$45,EG1))","v":0},{"$f":"IF(DIVNUM=1,0,VLOOKUP(DIVNUM2,$AV$9:$FN$45,EH1))","v":0},{"$f":"IF(DIVNUM=1,0,VLOOKUP(DIVNUM2,$AV$9:$FN$45,EI1))","v":0},{"$f":"IF(DIVNUM=1,0,VLOOKUP(DIVNUM2,$AV$9:$FN$45,EJ1))","v":0},{"$f":"IF(DIVNUM=1,0,VLOOKUP(DIVNUM2,$AV$9:$FN$45,EK1))","v":0},{"$f":"IF(DIVNUM=1,0,VLOOKUP(DIVNUM2,$AV$9:$FN$45,EL1))","v":0},{"$f":"IF(DIVNUM=1,0,VLOOKUP(DIVNUM2,$AV$9:$FN$45,EM1))","v":0},{"$f":"IF(DIVNUM=1,0,VLOOKUP(DIVNUM2,$AV$9:$FN$45,EN1))","v":0},{"$f":"IF(DIVNUM=1,0,VLOOKUP(DIVNUM2,$AV$9:$FN$45,EO1))","v":0},{"$f":"IF(DIVNUM=1,0,VLOOKUP(DIVNUM2,$AV$9:$FN$45,EP1))","v":0},{"$f":"IF(DIVNUM=1,0,VLOOKUP(DIVNUM2,$AV$9:$FN$45,EQ1))","v":0},{"$f":"IF(DIVNUM=1,0,VLOOKUP(DIVNUM2,$AV$9:$FN$45,ER1))","v":0},{"$f":"IF(DIVNUM=1,0,VLOOKUP(DIVNUM2,$AV$9:$FN$45,ES1))","v":0},{"$f":"IF(DIVNUM=1,0,VLOOKUP(DIVNUM2,$AV$9:$FN$45,ET1))","v":0},{"$f":"IF(DIVNUM=1,0,VLOOKUP(DIVNUM2,$AV$9:$FN$45,EU1))","v":0},{"$f":"IF(DIVNUM=1,0,VLOOKUP(DIVNUM2,$AV$9:$FN$45,EV1))","v":0},{"$f":"IF(DIVNUM=1,0,VLOOKUP(DIVNUM2,$AV$9:$FN$45,EW1))","v":0},{"$f":"IF(DIVNUM=1,0,VLOOKUP(DIVNUM2,$AV$9:$FN$45,EX1))","v":0},{"$f":"IF(DIVNUM=1,0,VLOOKUP(DIVNUM2,$AV$9:$FN$45,EY1))","v":0},{"$f":"IF(DIVNUM=1,0,VLOOKUP(DIVNUM2,$AV$9:$FN$45,EZ1))","v":0},{"$f":"IF(DIVNUM=1,0,VLOOKUP(DIVNUM2,$AV$9:$FN$45,FA1))","v":0},{"$f":"IF(DIVNUM=1,0,VLOOKUP(DIVNUM2,$AV$9:$FN$45,FB1))","v":0},{"$f":"IF(DIVNUM=1,0,VLOOKUP(DIVNUM2,$AV$9:$FN$45,FC1))","v":0},{"$f":"IF(DIVNUM=1,0,VLOOKUP(DIVNUM2,$AV$9:$FN$45,FD1))","v":0},{"$f":"IF(DIVNUM=1,0,VLOOKUP(DIVNUM2,$AV$9:$FN$45,FE1))","v":0},{"$f":"IF(DIVNUM=1,0,VLOOKUP(DIVNUM2,$AV$9:$FN$45,FF1))","v":0},{"$f":"IF(DIVNUM=1,0,VLOOKUP(DIVNUM2,$AV$9:$FN$45,FG1))","v":0},{"$f":"IF(DIVNUM=1,0,VLOOKUP(DIVNUM2,$AV$9:$FN$45,FH1))","v":0},{"$f":"IF(DIVNUM=1,0,VLOOKUP(DIVNUM2,$AV$9:$FN$45,FI1))","v":0},{"$f":"IF(DIVNUM=1,0,VLOOKUP(DIVNUM2,$AV$9:$FN$45,FJ1))","v":0},{"$f":"IF(DIVNUM=1,0,VLOOKUP(DIVNUM2,$AV$9:$FN$45,FK1))","v":0},{"$f":"IF(DIVNUM=1,0,VLOOKUP(DIVNUM2,$AV$9:$FN$45,FL1))","v":0},{"$f":"IF(DIVNUM=1,0,VLOOKUP(DIVNUM2,$AV$9:$FN$45,FM1))","v":0},{"$f":"IF(DIVNUM=1,0,VLOOKUP(DIVNUM2,$AV$9:$FN$45,FN1))","v":0},{"$f":"IF(DIVNUM=1,0,VLOOKUP(DIVNUM2,$AV$9:$FO$45,FO1))","v":0},{"$f":"IF(DIVNUM=1,0,VLOOKUP(DIVNUM2,$AV$9:$FP$45,FP1))","v":0}]
[null,null,null,null,null,null,"FO","R.M. of Whitehead","Oct 31",null,null,null,null,null,null,null,null,null,null,null,null,null,null,null,null,null,null,null,null,null,null,null,null,null,null,null,null,null,null,null,null,null,null,null,null,null,null,null,null,null,null,null,null,null,null,null,null,null,null,null,{"$f":"+DL48","v":0},{"$f":"+DM48","v":0},0,0,0,0,0,0,0,0,0,0,0,0,0,0,0,0,0,0,0,0,0,{"$f":"+EI48","v":0},{"$f":"+EJ48","v":0},{"$f":"+EK48","v":0},{"$f":"+EL48","v":0},{"$f":"+EM48","v":0},{"$f":"+EN48","v":0},{"$f":"+EO48","v":0},{"$f":"+EP48","v":0},{"$f":"+EQ48","v":0},{"$f":"+ER48","v":0},{"$f":"+ES48","v":0},{"$f":"+ET48","v":0},{"$f":"+EU48","v":0},{"$f":"+EV48","v":0},{"$f":"+EW48","v":0},{"$f":"+EX48","v":0},{"$f":"+EY48","v":0},{"$f":"+EZ48","v":0},{"$f":"+FA48","v":0},{"$f":"+FB48","v":0},{"$f":"+FC48","v":0},{"$f":"+FD48","v":0},{"$f":"+FE48","v":0},{"$f":"+FF48","v":0},{"$f":"+FG48","v":0},{"$f":"+FH48","v":0},{"$f":"+FI48","v":0},{"$f":"+FJ48","v":0},{"$f":"+FK48","v":0},{"$f":"+FL48","v":0},{"$f":"+FM48","v":0},{"$f":"+FN48","v":0}]
[null,null,null,null,null,null,"FO","Town of Virden","Oct 29",null,null,null,null,null,null,null,null,null,null,null,null,null,null,null,null,null,null,null,null,null,null,null,null,null,null,null,null,null,null,null,null,null,null,null,null,null,null,null,null,null,null,null,null,null,null,null,null,null,null,null,null,null,null,null,null,null,null,null,null,null,null,null,null,null,null,null,null,null,null,null,null,null,null,null,null,null,null,null,null,null,null,null,null,null,null,null,null,null,null,null,null,null,null,null,null,null,null,null,null,null,null,null,null,null,null,{"$f":"SUM(DL9:DL45)","v":285939554},{"$f":"SUM(DM9:DM45)","v":135490372},{"$f":"SUM(DN9:DN45)","v":464485454},{"$f":"SUM(DO9:DO45)","v":36603853},{"$f":"SUM(DP9:DP45)","v":60295656},{"$f":"SUM(DQ9:DQ45)","v":39201130},{"$f":"SUM(DR9:DR45)","v":26465667},{"$f":"SUM(DS9:DS45)","v":33771631},{"$f":"SUM(DT9:DT45)","v":71585739},{"$f":"SUM(DU9:DU45)","v":13559843},{"$f":"SUM(DV9:DV45)","v":6623515},{"$f":"SUM(DW9:DW45)","v":3591946},{"$f":"SUM(DX9:DX45)","v":2483733},{"$f":"SUM(DY9:DY45)","v":2575674},{"$f":"SUM(DZ9:DZ45)","v":18999},{"$f":"SUM(EA9:EA45)","v":1744994},{"$f":"SUM(EB9:EB45)","v":11112},{"$f":"SUM(EC9:EC45)","v":103078},{"$f":"SUM(ED9:ED45)","v":12048},{"$f":"SUM(EE9:EE45)","v":23837},{"$f":"SUM(EF9:EF45)","v":5986},{"$f":"SUM(EG9:EG45)","v":13926},{"$f":"SUM(EH9:EH45)","v":86072},{"$f":"SUM(EI9:EI45)","v":18865},{"$f":"SUM(EJ9:EJ45)","v":5778},{"$f":"SUM(EK9:EK45)","v":61663},{"$f":"SUM(EL9:EL45)","v":1143},{"$f":"SUM(EM9:EM45)","v":36519},{"$f":"SUM(EN9:EN45)","v":54670},{"$f":"SUM(EO9:EO45)","v":15047},{"$f":"SUM(EP9:EP45)","v":5021},{"$f":"SUM(EQ9:EQ45)","v":261},{"$f":"SUM(ER9:ER45)","v":3353},{"$f":"SUM(ES9:ES45)","v":1765},{"$f":"SUM(ET9:ET45)","v":13006},{"$f":"SUM(EU9:EU45)","v":115932},{"$f":"SUM(EV9:EV45)","v":27446},{"$f":"SUM(EW9:EW45)","v":3089},{"$f":"SUM(EX9:EX45)","v":6575},{"$f":"SUM(EY9:EY45)","v":17094},{"$f":"SUM(EZ9:EZ45)","v":9258},{"$f":"SUM(FA9:FA45)","v":125716},{"$f":"SUM(FB9:FB45)","v":55187},{"$f":"SUM(FC9:FC45)","v":23412},{"$f":"SUM(FD9:FD45)","v":2347},{"$f":"SUM(FE9:FE45)","v":1000},{"$f":"SUM(FF9:FF45)","v":6337},{"$f":"SUM(FG9:FG45)","v":43531},{"$f":"SUM(FH9:FH45)","v":28195},{"$f":"SUM(FI9:FI45)","v":4193},{"$f":"SUM(FJ9:FJ45)","v":23802},{"$f":"SUM(FK9:FK45)","v":6061},{"$f":"SUM(FL9:FL45)","v":781},{"$f":"SUM(FM9:FM45)","v":3847},{"$f":"SUM(FN9:FN45)","v":1247},{"$f":"SUM(FO9:FO45)","v":-3},{"$f":"SUM(FP9:FP45)","v":75952901}]
[null,null,null,null,null,null,"FR","rm of lakeshore","Oct 31"]
[null,null,null,null,null,null,"FR","town of leaf rapids","Oct 31"]
[null,null,null,null,null,null,"FR","town of snow lake","Aug 31"]
[null,null,null,null,null,null,"FR","rm of alonsa","Oct 31"]
[null,null,null,null,null,null,"FR","town of churchill","Oct 29"]
[null,null,null,null,null,null,"FR","rm of kelsey","Nov 01"]
[null,null,null,null,null,null,"FR","rm of grahamdale","Oct 31"]
[null,null,null,null,null,null,"FR","town of lynn lake","Oct 31"]
[null,null,null,null,null,null,"FR","town of grand rapids","Sep 30"]
[null,null,null,null,null,null,"FR","rm of mountain","Sep 30"]
[null,null,null,null,null,null,"FR","town of gillam","Oct 31"]
[null,null,null,null,null,null,"FR","indigenous and northern relations"]
[null,null,null,null,null,null,"FR","indigenous and northern relations"]
[null,null,null,null,null,null,"FR","indigenous and northern relations"]
[null,null,null,null,null,null,"FR","indigenous and northern relations"]
[null,null,null,null,null,null,"FR","incorporated community of cross lake"]
[null,null,null,null,null,null,"FR","incorporated community of seymourville"]
[null,null,null,null,null,null,"FR","norway house-northern affairs act"]
[null,null,null,null,null,null,"FR","pikwitonei-northern affairs act"]
[null,null,null,null,null,null,"FR","sherridon-northern affairs act"]
[null,null,null,null,null,null,"FR","incorporated community of south indian lake"]
[null,null,null,null,null,null,"FR","thicket portage-northern affairs act"]
[null,null,null,null,null,null,"FR","wabowden-northern affairs act"]
[null,null,null,null,null,null,"GA","municipality of rhineland","Oct 29"]
[null,null,null,null,null,null,"GA","rm of roland","Oct 29"]
[null,null,null,null,null,null,"GA","rm of stanley","Oct 29"]
[null,null,null,null,null,null,"GA","city of winkler","Aug 31"]
[null,null,null,null,null,null,"IN","rm of rockwood","Oct 29"]
[null,null,null,null,null,null,"IN","rm of rosser","Sep 30"]
[null,null,null,null,null,null,"IN","rm of st andrews","Oct 31"]
[null,null,null,null,null,null,"IN","rm of st laurent","Oct 31"]
[null,null,null,null,null,null,"IN","rm of west st paul","Sep 30"]
[null,null,null,null,null,null,"IN","rm of woodlands","Oct 31"]
[null,null,null,null,null,null,"IN","town of teulon","Aug 31"]
[null,null,null,null,null,null,"IN","town of stonewall","Sep 30"]
[null,null,null,null,null,null,"IN","city of winnipeg","Jun 30"]
[null,null,null,null,null,null,"IN","rm of armstrong","Oct 31"]
[null,null,null,null,null,null,"HA","R.M. of De Salaberry","Oct 31"]
[null,null,null,null,null,null,"HA","Municipality of Emerson-Franklin","Oct 31"]
[null,null,null,null,null,null,"HA","R.M. of Hanover","Oct 29"]
[null,null,null,null,null,null,"HA","R.M. of La Broquerie","Sep 30"]
[null,null,null,null,null,null,"HA","R.M. of Ritchot","Oct 31"]
[null,null,null,null,null,null,"HA","R.M. of Ste. Anne","Oct 29"]
[null,null,null,null,null,null,"HA","R.M. of Tache","Nov 1"]
[null,null,null,null,null,null,"HA","Town of Niverville","Sep 30"]
[null,null,null,null,null,null,"HA","City of Steinbach","Sep 30"]
[null,null,null,null,null,null,"KE","Town of The Pas","Aug 31"]
[null,null,null,null,null,null,"KE","R.M. of Kelsey","Nov 1"]
[null,null,null,null,null,null,"LA","Municipality of Bifrost-Riverton","Sep 30"]
[null,null,null,null,null,null,"LA","R.M. of Coldwell","Sep 30"]
[null,null,null,null,null,null,"LA","R.M. of Rockwood","Oct 29"]
[null,null,null,null,null,null,"LA","R.M. of St. Laurent","Oct 31"]
[null,null,null,null,null,null,"LA","Municipality of West Interlake","Oct 31"]
[null,null,null,null,null,null,"LA","R.M. of Armstrong","Oct 31"]
[null,null,null,null,null,null,"LA","R.M. of Fisher","Oct 31"]
[null,null,null,null,null,null,"LA","R.M. of Grahamdale","Oct 31"]
[null,null,null,null,null,null,"LO","R.M. of Brokenhead","Sep 30"]
[null,null,null,null,null,null,"LO","R.M. of St. Andrews","Oct 31"]
[null,null,null,null,null,null,"LO","R.M. of St. Clements","Oct 31"]
[null,null,null,null,null,null,"LO","R.M. of Victoria Beach","Jul 31"]
[null,null,null,null,null,null,"LO","City of Selkirk","Jul 30"]
[null,null,null,null,null,null,"LO","R.M. of Alexander","Sep 1"]
[null,null,null,null,null,null,"LR","R.M. of Ritchot","Oct 31"]
[null,null,null,null,null,null,"LR","R.M. of Springfield","Oct 29"]
[null,null,null,null,null,null,"LR","City of Winnipeg","Jun 30"]
[null,null,null,null,null,null,"MO","R.M. of Dauphin","Oct 29"]
[null,null,null,null,null,null,"MO","Municipality of Ethelbert","Oct 31"]
[null,null,null,null,null,null,"MO","Grandview Municipality","Oct 31"]
[null,null,null,null,null,null,"MO","R.M. of Lakeshore","Oct 31"]
[null,null,null,null,null,null,"MO","Municipality of McCreary","Oct 31"]
[null,null,null,null,null,null,"MO","R.M. of Mossey River","Oct 31"]
[null,null,null,null,null,null,"MO","R.M. of Riding Mountain West","Oct 29"]
[null,null,null,null,null,null,"MO","Municipality of Hillsburg-Roblin-Shell River","Oct 31"]
[null,null,null,null,null,null,"MO","Gilbert Plains Municipality","Sep 30"]
[null,null,null,null,null,null,"MO","City of Dauphin","Jul 30"]
[null,null,null,null,null,null,"MO","R.M. of Mountain","Sep 30"]
[null,null,null,null,null,null,"MY","City of Thompson","Sep 30"]
[null,null,null,null,null,null,"PA","R.M. of Ellice-Archie","Oct 31"]
[null,null,null,null,null,null,"PA","R.M. of Oakview","Oct 29"]
[null,null,null,null,null,null,"PA","R.M. of Riding Mountain West","Oct 29"]
[null,null,null,null,null,null,"PA","R.M. of Yellowhead","Oct 31"]
[null,null,null,null,null,null,"PA","R.M. of Wallace-Woodworth","Oct 29"]
[null,null,null,null,null,null,"PA","Hamiota Municipality","Oct 31"]
[null,null,null,null,null,null,"PA","Rossburn Municipality","Oct 31"]
[null,null,null,null,null,null,"PA","Prairie View Municipality","Oct 29"]
[null,null,null,null,null,null,"PA","Municipality of Russell-Binscarth","Oct 29"]
[null,null,null,null,null,null,"PA","Municipality of Harrison Park","Oct 29"]
[null,null,null,null,null,null,"PE","R.M. of Macdonald","Sep 24"]
[null,null,null,null,null,null,"PE","R.M. of Headingley","Sep 30"]
[null,null,null,null,null,null,"PE","City of Winnipeg","Jun 30"]
[null,null,null,null,null,null,"PI","Municipality of Glenella-Lansdowne","Oct 31"]
[null,null,null,null,null,null,"PI","Municipality of North Cypress-Langford","Sep 30"]
[null,null,null,null,null,null,"PI","Municipality of North Norfolk","Sep 30"]
[null,null,null,null,null,null,"PI","R.M. of Portage La Prairie","Sep 30"]
[null,null,null,null,null,null,"PI","Municipality of Norfolk Treherne","Oct 31"]
[null,null,null,null,null,null,"PI","R.M. of Victoria","Oct 29"]
[null,null,null,null,null,null,"PI","Municipality of Westlake-Gladstone","Oct 29"]
[null,null,null,null,null,null,"PO","R.M. of Grey","Sep 30"]
[null,null,null,null,null,null,"PO","Municipality of North Norfolk","Sep 30"]
[null,null,null,null,null,null,"PO","R.M. of Portage La Prairie","Sep 30"]
[null,null,null,null,null,null,"PO","R.M. of St. Francois Xavier","Sep 30"]
[null,null,null,null,null,null,"PO","Municipality of Norfolk Treherne","Oct 31"]
[null,null,null,null,null,null,"PO","Municipality of Westlake-Gladstone","Oct 29"]
[null,null,null,null,null,null,"PO","R.M. of Woodlands","Oct 31"]
[null,null,null,null,null,null,"PO","City Portage la Prairie","Jul 31"]
[null,null,null,null,null,null,"PR","R.M. of Cartier","Sep 30"]
[null,null,null,null,null,null,"PR","R.M. of Dufferin","Oct 29"]
[null,null,null,null,null,null,"PR","R.M. of Grey","Sep 30"]
[null,null,null,null,null,null,"PR","Municipality of Lorne","Oct 29"]
[null,null,null,null,null,null,"PR","R.M. of Macdonald","Sep 24"]
[null,null,null,null,null,null,"PR","R.M. of Morris","Oct 29"]
[null,null,null,null,null,null,"PR","Municipality of Pembina","Oct 31"]
[null,null,null,null,null,null,"PR","R.M. of Portage La Prairie","Sep 30"]
[null,null,null,null,null,null,"PR","R.M. of Roland","Oct 29"]
[null,null,null,null,null,null,"PR","R.M. of St. Francois Xavier","Sep 30"]
[null,null,null,null,null,null,"PR","R.M. of St. Laurent","Oct 31"]
[null,null,null,null,null,null,"PR","Municipality of Norfolk Treherne","Oct 31"]
[null,null,null,null,null,null,"PR","R.M. of Stanley","Oct 29"]
[null,null,null,null,null,null,"PR","R.M. of Thompson","Sep 30"]
[null,null,null,null,null,null,"PR","R.M. of Woodlands","Oct 31"]
[null,null,null,null,null,null,"PR","Town of Carman","Aug 31"]
[null,null,null,null,null,null,"PS","R.M. of Argyle","Oct 31"]
[null,null,null,null,null,null,"PS","R.M. of Dufferin","Oct 29"]
[null,null,null,null,null,null,"PS","R.M. of Grey","Sep 30"]
[null,null,null,null,null,null,"PS","Municipality of Lorne","Oct 29"]
[null,null,null,null,null,null,"PS","Municipality of Louise","Oct 29"]
[null,null,null,null,null,null,"PS","Municipality of Pembina","Oct 31"]
[null,null,null,null,null,null,"PS","R.M. of Portage La Prairie","Sep 30"]
[null,null,null,null,null,null,"PS","Cartwright-Roblin Municipality","Oct 31"]
[null,null,null,null,null,null,"PS","Municipality of Glenboro-South Cypress","Oct 29"]
[null,null,null,null,null,null,"PS","Municipality of Norfolk Treherne","Oct 31"]
[null,null,null,null,null,null,"PS","R.M. of Stanley","Oct 29"]
[null,null,null,null,null,null,"PS","R.M. of Prairie Lakes","Oct 31"]
[null,null,null,null,null,null,"PS","R.M. of Thompson","Sep 30"]
[null,null,null,null,null,null,"PS","R.M. of Victoria","Oct 29"]
[null,null,null,null,null,null,"RE","R.M. of Cartier","Sep 30"]
[null,null,null,null,null,null,"RE","R.M. of De Salaberry","Oct 31"]
[null,null,null,null,null,null,"RE","R.M. of Dufferin","Oct 29"]
[null,null,null,null,null,null,"RE","Municipality of Emerson-Franklin","Oct 31"]
[null,null,null,null,null,null,"RE","R.M. of Macdonald","Sep 24"]
[null,null,null,null,null,null,"RE","R.M. of Montcalm","Oct 31"]
[null,null,null,null,null,null,"RE","R.M. of Morris","Oct 29"]
[null,null,null,null,null,null,"RE","Municipality of Rhineland","Oct 29"]
[null,null,null,null,null,null,"RE","R.M. of Ritchot","Oct 31"]
[null,null,null,null,null,null,"RE","R.M. of Roland","Oct 29"]
[null,null,null,null,null,null,"RE","Village St. Pierre-Jolys","Oct 31"]
[null,null,null,null,null,null,"RE","Town of Morris","Sep 30"]
[null,null,null,null,null,null,"RI","R.M. of East St. Paul","Sep 30"]
[null,null,null,null,null,null,"RI","R.M. of St. Clements","Oct 31"]
[null,null,null,null,null,null,"RI","City of Winnipeg","Jun 30"]
[null,null,null,null,null,null,"RO","R.M. of Oakview","Oct 29"]
[null,null,null,null,null,null,"RO","Municipality of Clanwilliam-Erickson","Oct 31"]
[null,null,null,null,null,null,"RO","R.M. of Cornwallis","Sep 30"]
[null,null,null,null,null,null,"RO","R.M. of Elton","Oct 29"]
[null,null,null,null,null,null,"RO","R.M. of Minto-Odanah","Oct 29"]
[null,null,null,null,null,null,"RO","R.M. of Yellowhead","Oct 31"]
[null,null,null,null,null,null,"RO","Town of Minnedosa","Sep 30"]
[null,null,null,null,null,null,"RO","Riverdale Municipality","Sep 30"]
[null,null,null,null,null,null,"RO","Municipality of Harrison Park","Oct 29"]
[null,null,null,null,null,null,"SE","R.M. of La Broquerie","Sep 30"]
[null,null,null,null,null,null,"SE","R.M. of Macdonald","Sep 24"]
[null,null,null,null,null,null,"SE","R.M. of Ritchot","Oct 31"]
[null,null,null,null,null,null,"SE","R.M. of Ste. Anne","Oct 29"]
[null,null,null,null,null,null,"SE","R.M. of Springfield","Oct 29"]
[null,null,null,null,null,null,"SE","R.M. of Tache","Nov 1"]
[null,null,null,null,null,null,"SE","Town of Ste. Anne","Jul 30"]
[null,null,null,null,null,null,"SE","City of Winnipeg","Jun 30"]
[null,null,null,null,null,null,"SE","R.M. of Piney","Oct 29"]
[null,null,null,null,null,null,"SE","R.M. of Reynolds","Oct 29"]
[null,null,null,null,null,null,"SO","R.M. of St. Andrews","Oct 31"]
[null,null,null,null,null,null,"SO","R.M. of West St. Paul","Sep 30"]
[null,null,null,null,null,null,"SO","City of Winnipeg","Jun 30"]
[null,null,null,null,null,null,"SR","Municipality of Brenda-Waskada","Oct 31"]
[null,null,null,null,null,null,"SR","Municipality of Grassland","Oct 29"]
[null,null,null,null,null,null,"SR","R.M. of Cornwallis","Sep 30"]
[null,null,null,null,null,null,"SR","Municipality of Two Borders","Oct 31"]
[null,null,null,null,null,null,"SR","Municipality of Boissevain-Morton","Sep 30"]
[null,null,null,null,null,null,"SR","Municipality of Oakland-Wawanesa","Oct 31"]
[null,null,null,null,null,null,"SR","R.M. of Sifton","Oct 31"]
[null,null,null,null,null,null,"SR","Municipality of Glenboro-South Cypress","Oct 29"]
[null,null,null,null,null,null,"SR","R.M. of Prairie Lakes","Oct 31"]
[null,null,null,null,null,null,"SR","R.M. of Whitehead","Oct 31"]
[null,null,null,null,null,null,"SR","Municipality of Deloraine-Winchester","Oct 31"]
[null,null,null,null,null,null,"SR","Town of Melita","Oct 29"]
[null,null,null,null,null,null,"SR","Municipality of Souris-Glenwood","Oct 31"]
[null,null,null,null,null,null,"ST","R.M. of Headingley","Sep 30"]
[null,null,null,null,null,null,"ST","City of Winnipeg","Jun 30"]
[null,null,null,null,null,null,"SU","R.M. of Brokenhead","Sep 30"]
[null,null,null,null,null,null,"SU","R.M. of Lac Du Bonnet","Sep 17"]
[null,null,null,null,null,null,"SU","R.M. of Ritchot","Oct 31"]
[null,null,null,null,null,null,"SU","R.M. of St. Clements","Oct 31"]
[null,null,null,null,null,null,"SU","R.M. of Springfield","Oct 29"]
[null,null,null,null,null,null,"SU","R.M. of Tache","Nov 1"]
[null,null,null,null,null,null,"SU","R.M. of Whitemouth","Oct 29"]
[null,null,null,null,null,null,"SU","Town of Lac du Bonnet","Sep 24"]
[null,null,null,null,null,null,"SU","Town Powerview-Pinefalls","Oct 31"]
[null,null,null,null,null,null,"SU","Town of Beausejour","Aug 31"]
[null,null,null,null,null,null,"SU","R.M. of Alexander","Sep 01"]
[null,null,null,null,null,null,"SU","R.M. of Reynolds","Oct 29"]
[null,null,null,null,null,null,"SW","municipality of minitonas-bowsman","Sep 30"]
[null,null,null,null,null,null,"SW","municipality of swan valley west","Sep 30"]
[null,null,null,null,null,null,"SW","town of swan river","Jul 31"]
[null,null,null,null,null,null,"SW","rm of mountain","Sep 30"]
[null,null,null,null,null,null,"TM","rm of argyle","Oct 31"]
[null,null,null,null,null,null,"TM","municipality of grassland","Oct 29"]
[null,null,null,null,null,null,"TM","municipality of boissevain-morton","Sep 30"]
[null,null,null,null,null,null,"TM","cartwright-roblin municipality","Oct 31"]
[null,null,null,null,null,null,"TM","rm of prairie lakes","Oct 31"]
[null,null,null,null,null,null,"TM","killarney-turtle mountain","Sep 30"]
[null,null,null,null,null,null,"TR","Municipality of Glenella-Lansdowne","Oct 31"]
[null,null,null,null,null,null,"TR","R.M. of Lakeshore","Oct 31"]
[null,null,null,null,null,null,"TR","Municipality of McCreary","Oct 31"]
[null,null,null,null,null,null,"TR","R.M. of Rosedale","Oct 31"]
[null,null,null,null,null,null,"TR","Municipality of Westlake-Gladstone","Oct 29"]
[null,null,null,null,null,null,"TR","Municipality of Ste. Rose","Oct 31"]
[null,null,null,null,null,null,"TR","R.M. of Alonsa","Oct 31"]
[null,null,null,null,null,null,"WE","municipality of pembina","Oct 31"]
[null,null,null,null,null,null,"WE","rm of roland","Oct 29"]
[null,null,null,null,null,null,"WE","rm of stanley","Oct 29"]
[null,null,null,null,null,null,"WE","rm of thompson","Sep 30"]
[null,null,null,null,null,null,"WE","city of morden","Aug 25"]
[null,null,null,null,null,null,"WI","City of Winnipeg","Jun 30"]
[null,null,null,null,null,null,"XW","L.G.D. of Pinawa","Aug 31"]
[]
[]
[]
[]
[]
[]
[]
[]
[]
[]
[]
[]
[]
[]
[]
[]
[null,null,null,null,null,null,"DIVNUM_MUN"]
[null,null,null,null,null,null,"No.",null,null,null,null,null,null,null,null,{"$f":"H294=P294","v":false}]
[null,null,null,null,null,null,null,null,null,null,null,null,null,null,null,null,null,{"$f":"EXACT(S303,L303)","v":true}]
[null,null,null,null,null,null,"DIVNUM_MUN","MUN","DUE",null,null,null,null,null,null,null,{"$f":"SUM(Q294:Q316)","v":0}]
[null,null,null,null,null,1,null,null,null,{"$f":"+Q294","v":0},null,{"$f":"TRIM(LOWER(M294))","v":""},{"$f":"IF(DIVNUM=1,\"\",IF(P294=\"City of Winnipeg\",\"City of Winnipeg\",IF(P294=\"City of Thompson\",\"City of Thompson\",IF(P294=\"L.G.D. of Pinawa\",\"LGD of Pinawa\",SUBSTITUTE(SUBSTITUTE(P294,N294,\"\"),\".\",\"\")))))","v":""},{"$f":"RIGHT(P294,5)","v":"Z"},1,{"$f":"IF(+$BI$48=0,\"Z\",+$BI$48)","v":"Z"},{"$f":"ROUND(+$BI$49,0)","v":0},{"$f":"IF(ISNA(VLOOKUP(L294,$S$294:$T$317,2,FALSE))=TRUE,\"\",VLOOKUP(L294,$S$294:$T$317,2,FALSE))","v":0},{"$f":"LOWER(SUBSTITUTE(H294,\".\",\"\"))","v":""},{"$f":"+I294","v":"00:00:00"}]
[null,null,null,null,null,2,null,null,null,0,null,{"$f":"TRIM(LOWER(M295))","v":""},{"$f":"SUBSTITUTE(SUBSTITUTE(P295,N295,\"\"),\".\",\"\")","v":""},{"$f":"RIGHT(P295,5)","v":"Z"},2,{"$f":"IF(+$BJ$48=0,\"Z\",+$BJ$48)","v":"Z"},{"$f":"ROUND(+$BJ$49,0)","v":0},{"$f":"IF(ISNA(VLOOKUP(L295,$S$294:$T$317,2,FALSE))=TRUE,\"\",VLOOKUP(L295,$S$294:$T$317,2,FALSE))","v":0},{"$f":"LOWER(SUBSTITUTE(H295,\".\",\"\"))","v":""},{"$f":"+I295","v":"00:00:00"}]
[null,null,null,null,null,3,null,null,null,0,null,"","","Z",3,{"$f":"IF(+$BK$48=0,\"Z\",+$BK$48)","v":"Z"},{"$f":"ROUND(+$BK$49,0)","v":0},0,"","00:00:00"]
[null,null,null,null,null,4,null,null,null,0,null,"","","Z",4,{"$f":"IF(+$BL$48=0,\"Z\",+$BL$48)","v":"Z"},{"$f":"ROUND(+$BL$49,0)","v":0},0,"","00:00:00"]
[null,null,null,null,null,5,null,null,null,0,null,"","","Z",5,{"$f":"IF(+$BM$48=0,\"Z\",+$BM$48)","v":"Z"},{"$f":"ROUND(+$BM$49,0)","v":0},0,"","00:00:00"]
[null,null,null,null,null,6,null,null,null,0,null,"","","Z",6,{"$f":"IF(+$BN$48=0,\"Z\",+$BN$48)","v":"Z"},{"$f":"ROUND(+$BN$49,0)","v":0},0,"","00:00:00"]
[null,null,null,null,null,7,null,null,null,0,null,"","","Z",7,{"$f":"IF(+$BO$48=0,\"Z\",+$BO$48)","v":"Z"},{"$f":"ROUND(+$BO$49,0)","v":0},0,"","00:00:00"]
[null,null,null,null,null,8,null,null,null,0,null,"","","Z",8,{"$f":"IF(+$BP$48=0,\"Z\",+$BP$48)","v":"Z"},{"$f":"ROUND(+$BP$49,0)","v":0},0,"","00:00:00"]
[null,null,null,null,null,9,null,null,null,0,null,"","","Z",9,{"$f":"IF(+$BQ$48=0,\"Z\",+$BQ$48)","v":"Z"},{"$f":"ROUND(+$BQ$49,0)","v":0},0,"","00:00:00"]
[null,null,null,null,null,10,null,null,null,0,null,"","","Z",10,{"$f":"IF(+$BR$48=0,\"Z\",+$BR$48)","v":"Z"},{"$f":"ROUND(+$BR$49,0)","v":0},0,"","00:00:00"]
[null,null,null,null,null,11,null,null,null,0,null,"","","Z",11,{"$f":"IF(+$BS$48=0,\"Z\",+$BS$48)","v":"Z"},{"$f":"ROUND(+$BS$49,0)","v":0},0,"","00:00:00"]
[null,null,null,null,null,12,null,null,null,0,null,"","","Z",12,{"$f":"IF(+$BT$48=0,\"Z\",+$BT$48)","v":"Z"},{"$f":"ROUND(+$BT$49,0)","v":0},0,"","00:00:00"]
[null,null,null,null,null,13,null,null,null,0,null,"","","Z",13,{"$f":"IF(+$BU$48=0,\"Z\",+$BU$48)","v":"Z"},{"$f":"ROUND(+$BU$49,0)","v":0},0,"","00:00:00"]
[null,null,null,null,null,14,null,null,null,0,null,"","","Z",14,{"$f":"IF(+$BV$48=0,\"Z\",+$BV$48)","v":"Z"},{"$f":"ROUND(+$BV$49,0)","v":0},0,"","00:00:00"]
[null,null,null,null,null,15,null,null,null,0,null,"","","Z",15,{"$f":"IF(+$BW$48=0,\"Z\",+$BW$48)","v":"Z"},{"$f":"ROUND(+$BW$49,0)","v":0},0,"","00:00:00"]
[null,null,null,null,null,16,null,null,null,0,null,"","","Z",16,{"$f":"IF(+$BX$48=0,\"Z\",+$BX$48)","v":"Z"},{"$f":"ROUND(+$BX$49,0)","v":0},0,"","00:00:00"]
[null,null,null,null,null,17,null,null,null,{"$f":"+$Q$310","v":0},null,"","","Z",17,{"$f":"IF(+$BY$48=0,\"Z\",+$BY$48)","v":"Z"},{"$f":"ROUND(+$BY$49,0)","v":0},0,"","00:00:00"]
[null,null,null,null,null,18,null,null,null,{"$f":"+$Q$311","v":0},null,"","","Z",18,{"$f":"IF(+$BZ$48=0,\"Z\",+$BZ$48)","v":"Z"},{"$f":"ROUND(+$BZ$49,0)","v":0},0,"","00:00:00"]
[null,null,null,null,null,19,null,null,null,{"$f":"+$Q$312","v":0},null,"","","Z",19,{"$f":"IF(+$CA$48=0,\"Z\",+$CA$48)","v":"Z"},{"$f":"ROUND(+$CA$49,0)","v":0},0,"","00:00:00"]
[null,null,null,null,null,20,null,null,null,{"$f":"+$Q$313","v":0},null,"","","Z",20,{"$f":"IF(+$CB$48=0,\"Z\",+$CB$48)","v":"Z"},{"$f":"ROUND(+$CB$49,0)","v":0},0,"","00:00:00"]
[null,null,null,null,null,21,null,null,null,{"$f":"+$Q$314","v":0},null,"","","Z",21,{"$f":"IF(+$CC$48=0,\"Z\",+$CC$48)","v":"Z"},{"$f":"ROUND(+$CC$49,0)","v":0},0,"","00:00:00"]
[null,null,null,null,null,22,null,null,null,{"$f":"+$Q$315","v":0},null,"","","Z",22,{"$f":"IF(+$CD$48=0,\"Z\",+$CD$48)","v":"Z"},{"$f":"ROUND(+$CD$49,0)","v":0},0,"","00:00:00"]
[null,null,null,null,null,23,null,null,null,{"$f":"+$Q$316","v":0},null,"","","Z",23,{"$f":"IF(+$CE$48=0,\"Z\",+$CE$48)","v":"Z"},{"$f":"ROUND(+$CE$49,0)","v":0},0,"","00:00:00"]
[null,null,null,null,null,null,null,null,null,null,null,null,null,null,null,null,null,null,""]

{"sheet":"User Instructions","index":1,"n_rows":61,"n_cols":5,"rows_kept":61,"cut":false,"hidden":false,"merged":[[34,1,36,4],[50,1,51,4],[53,0,55,0],[60,0,64,0],[60,1,67,4],[53,1,58,4],[0,1,0,4],[10,1,10,4],[2,1,4,4],[6,1,7,4],[12,1,14,4],[17,1,18,4],[21,1,22,4],[25,1,25,4],[27,0,28,0],[27,1,29,4]]}
[null,"WHO SHOULD USE THIS FORM"]
[]
[null,"School Divisions who have la Division scolaire franco-manitobaine (DSFM) pupils residing in their divisions should use this form to calculate DSFM's portion of Special Levy payments received from municipalities."]
[]
[]
[]
[null,"Payment of the calculated amount from this form should be remitted to DSFM within five (5) working days as set out by the Public School Act Regulation 371/88 Section 3.1(1)."]
[]
[]
[]
[null,"WHAT THIS FORM DOES"]
[]
["1)","This form calculates the percentage of the total Special Levy applicable to DSFM. The percentage calculated is applied to the Special Levy payments received from municipalities to arrive at the amount owing to DSFM for each remittance period."]
[]
[]
[]
[]
["2)","The form can also serve as a working file to monitor all the remittances paid to DSFM per year and to monitor Special Levy receivable balances from each municipality."]
[]
[]
[]
["3)","If an entry exceeds the total sum, an error message appears and blocks the entry. Please re-enter the amounts to match the total levy. The formulas are visible in each cell."]
[]
[]
[]
[null,"HOW TO USE THIS FORM"]
[]
["1)","On the top left hand corner, select your School Division and preferred language. "]
[]
[]
[]
[]
[]
[]
["2)","When a school division is selected, the following fields are automatically populated, except \"DSFM's share of EPTC (paid by Province)\" and \"DSFM's share of MSTR (paid by Province)\". Please input the corresponding numbers for your division into these cells.\n\nAll pre-entered data is taken from school divisions' submitted FRAME Budget files."]
[]
[]
[]
[]
[]
[]
[]
[null,""]
[null,null,null,null,"                               "]
[]
[]
[]
[]
[]
[]
["3)","Tax due dates and Total Special Levy by Municipality as they appear in the Budget file ratio page are also pre-populated in when a school division is selected."]
[]
[]
["4)","Enter the amount of EPTC by municipality (column E) to determine \"Net Special Levy By Municipality\" (column F). The EPTC by municipality is provided to School Divisions when they receive their EPTC payment(s) from the Province. \n\nThe Manitoba School Tax Rebate (column F) should also be entered by municipality."]
[]
[]
[]
[]
[]
[]
["5)","Enter payments made by municipalities in the remittance columns. Select the number of remittances (maximum of 12).  The number of remittances may be increased as needed, and remittance dates may be entered (column B).  \n\nPrinting options are also provided. Before printing a copy to send to DSFM, select \"French\" for language as referenced in #1. "]

{"sheet":"DATA ENTRY","index":2,"n_rows":161,"n_cols":42,"rows_kept":161,"cut":false,"hidden":false,"merged":[[32,19,33,19],[0,0,0,1],[79,0,79,1],[31,0,33,0],[31,2,33,2],[31,3,33,3],[31,1,33,1],[31,5,33,5],[64,0,64,3],[66,0,66,3],[31,4,33,4]]}
[{"$f":"IF(DIVNUM=1,\"\",VLOOKUP(DIVNUM,LOOKUPTABLE,2))","v":""},null,{"$f":"IF(A101=1,C116,C117)","v":"Calculation of Special Levy Remittances to la Division scolaire franco-manitobaine (DSFM)"},null,null,null,null,null,null,null,null,null,null,null,null,null,null,null,null,null,null,null,null,null,null,0,null,null,null,null,null,null,null,null,null,null,null,null,null,2,{"$f":"IF(DATA!$AI$7=0,1,DATA!$AI$7)","v":1},{"$f":"+AO1-1","v":0}]
[null,null,null,null,null,null,null,null,null,null,null,null,null,null,null,null,null,null,null,null,null,null,null,null,null,null,null,null,null,null,null,null,null,null,null,null,null,null,null,null,"LETTER"]
[]
[]
[]
[]
[null,null,{"$f":"IF($A$101=1,C110,C111)","v":"YEAR OF LEVY "},2024]
[]
[null,null,{"$f":"IF($A$101=1,C113,C114)","v":"SPECIAL LEVY BEFORE TIG (line J.)"},{"$f":"+DATA!$BA$48","v":0},null,"Select the "]
[null,null,{"$f":"IF($A$101=1,C119,C120)","v":"SPECIAL LEVY FOR DSFM (line H.)"},{"$f":"+DATA!$AY$48","v":0},null,"number of"]
[null,null,{"$f":"IF($A$101=1,C132,C133)","v":"ADJUSTMENT FOR DSFM (line I.)"},{"$f":"+DATA!$AZ$48","v":0},null,"remittance(s):"]
[]
[null,null,{"$f":"IF($A$101=1,C128,C129)","v":"PERCENTAGE (%) OF TOTAL SPECIAL LEVY APPLICABLE TO DSFM"},{"$f":"IF(DIVLEVY=0,\"\",ROUND((DSFMLEVY+DSFMADJ)/DIVLEVY,8))","v":""}]
[]
[null,null,{"$f":"IF($A$101=1,C122,C123)","v":"DSFM's share of EPTC (paid by Province)"},0]
[null,null,{"$f":"IF($A$101=1,C123,C124)","v":"Part du CIFME de la DSFM (payée par la province)"},{"$f":"+D63*D15","v":0},4,4,1,2,3,4,5,6,7,8,9,10,11,12]
[]
[null,null,{"$f":"IF($A$101=1,C160,C161)","v":"TOTAL TIG (line L.)"},{"$f":"DATA!BC48","v":0}]
[null,null,{"$f":"IF($A$101=1,C145,C146)","v":"DIVISION's share of TIG"},{"$f":"DATA!BD48","v":0}]
[null,null,{"$f":"IF($A$101=1,C142,C143)","v":"DSFM's share of TIG (paid by Province)"},{"$f":"D18-D19","v":0},null,4]
[]
[null,null,{"$f":"IF($A$101=1,C148,C149)","v":"TOTAL PTOG (line M.)"},{"$f":"D23+D24","v":0}]
[null,null,{"$f":"IF($A$101=1,C151,C152)","v":"DIVISON's share of PTOG (paid by Province)"},{"$f":"DATA!BE48","v":0}]
[null,null,{"$f":"IF($A$101=1,C154,C155)","v":"DSFM's share of PTOG (paid by Province)"},{"$f":"DATA!BF48","v":0}]
[]
[null,null,{"$f":"IF($A$101=1,C157,C158)","v":"DSFM's share of MSTR (paid by Province)"},0]
[]
[null,null,"NET SPECIAL LEVY (line O.)",{"$f":"DIVLEVY-D18-D22","v":0}]
[]
[null,null,{"$f":"IF($A$101=1,C139,C140)","v":"NET TO BE PAID TO DSFM"},{"$f":"IF(D15=\"\",\"\",+DSFMLEVY+DSFMADJ-D15-D20-D24-D26)","v":0}]
[]
[{"$f":"IF($A$101=1,A104,A105)","v":"REMITTING AUTHORITY / MUNICIPALITY"},"TAX DUE DATE","TOTAL SPECIAL LEVY BY MUNICIPALITY","Less: \nEDUCATION PROPERTY TAX CREDIT","Less: \nMANITOBA SCHOOL TAX REBATE","NET SPECIAL LEVY BY MUNICIPALITY",{"$f":"IF($AO$1=G16,IF($A$101=1,\"AMOUNT COLLECTED\",\"MONTANT PERÇU\"),\"\")","v":"AMOUNT COLLECTED"},"","","","","","","","","","",""]
[null,null,null,null,null,null,{"$f":"IF($A$101=1,G101,G102)","v":"REMITTANCE 1"},{"$f":"IF($A$101=1,H101,H102)","v":"REMITTANCE 2"},"REMITTANCE 3","REMITTANCE 4","REMITTANCE 5","REMITTANCE 6","REMITTANCE 7","REMITTANCE 8","REMITTANCE 9","REMITTANCE 10","REMITTANCE 11","REMITTANCE 12",null,{"$f":"IF($A$101=1,FORM!G31,FORM!G32)","v":"YEAR TO DATE"},{"$f":"IF($A$101=1,A115,A117)","v":"BALANCE TO"}]
[null,null,null,null,null,null,null,null,null,null,null,null,null,null,null,null,null,null,null,null,{"$f":"IF($A$101=1,A116,A118)","v":"COLLECT"}]
[]
[]
[{"$f":"+DATA!M294","v":""},{"$f":"IF(A37=\"\",\"\",DATA!R294)","v":""},{"$f":"IF(DATA!$FO$48=1,(DATA!$AX$48-DATA!$BA$48-DATA!$FP$48),DATA!$Q$294)*0+DATA!$Q$294","v":0},null,null,{"$f":"+C37-D37-E37","v":0},null,null,null,null,null,null,null,null,null,null,null,null,null,{"$f":"SUM(MUN_1)","v":0},{"$f":"+HOMEMUN-T37","v":0}]
[{"$f":"+DATA!M295","v":""},{"$f":"IF(A38=\"\",\"\",DATA!R295)","v":""},{"$f":"+DATA!$Q$295","v":0},null,null,{"$f":"+C38-D38-E38","v":0},null,null,null,null,null,null,null,null,null,null,null,null,null,{"$f":"SUM(MUN_2)","v":0},{"$f":"+F38-T38","v":0}]
[{"$f":"+DATA!M296","v":""},{"$f":"IF(A39=\"\",\"\",DATA!R296)","v":""},{"$f":"+DATA!$Q$296","v":0},null,null,{"$f":"+C39-D39-E39","v":0},null,null,null,null,null,null,null,null,null,null,null,null,null,{"$f":"SUM(MUN_3)","v":0},0]
[{"$f":"+DATA!M297","v":""},{"$f":"IF(A40=\"\",\"\",DATA!R297)","v":""},{"$f":"+DATA!$Q$297","v":0},null,null,0,null,null,null,null,null,null,null,null,null,null,null,null,null,{"$f":"SUM(MUN_4)","v":0},0]
[{"$f":"+DATA!M298","v":""},{"$f":"IF(A41=\"\",\"\",DATA!R298)","v":""},{"$f":"+DATA!$Q$298","v":0},null,null,0,null,null,null,null,null,null,null,null,null,null,null,null,null,{"$f":"SUM(MUN_5)","v":0},0]
[{"$f":"+DATA!M299","v":""},{"$f":"IF(A42=\"\",\"\",DATA!R299)","v":""},{"$f":"+DATA!$Q$299","v":0},null,null,0,null,null,null,null,null,null,null,null,null,null,null,null,null,{"$f":"SUM(MUN_6)","v":0},0]
[{"$f":"+DATA!M300","v":""},{"$f":"IF(A43=\"\",\"\",DATA!R300)","v":""},{"$f":"+DATA!$Q$300","v":0},null,null,0,null,null,null,null,null,null,null,null,null,null,null,null,null,{"$f":"SUM(MUN_7)","v":0},0]
[{"$f":"+DATA!M301","v":""},{"$f":"IF(A44=\"\",\"\",DATA!R301)","v":""},{"$f":"+DATA!$Q$301","v":0},null,null,0,null,null,null,null,null,null,null,null,null,null,null,null,null,{"$f":"SUM(MUN_8)","v":0},0]
[{"$f":"+DATA!M302","v":""},{"$f":"IF(A45=\"\",\"\",DATA!R302)","v":""},{"$f":"+DATA!$Q$302","v":0},null,null,0,null,null,null,null,null,null,null,null,null,null,null,null,null,{"$f":"SUM(MUN_9)","v":0},0]
[{"$f":"+DATA!M303","v":""},{"$f":"IF(A46=\"\",\"\",DATA!R303)","v":""},{"$f":"+DATA!$Q$303","v":0},null,null,0,null,null,null,null,null,null,null,null,null,null,null,null,null,{"$f":"SUM(MUN_10)","v":0},0]
[{"$f":"+DATA!M304","v":""},{"$f":"IF(A47=\"\",\"\",DATA!R304)","v":""},{"$f":"+DATA!$Q$304","v":0},null,null,0,null,null,null,null,null,null,null,null,null,null,null,null,null,{"$f":"SUM(MUN_11)","v":0},0]
[{"$f":"+DATA!M305","v":""},{"$f":"IF(A48=\"\",\"\",DATA!R305)","v":""},{"$f":"+DATA!$Q$305","v":0},null,null,0,null,null,null,null,null,null,null,null,null,null,null,null,null,{"$f":"SUM(MUN_12)","v":0},0]
[{"$f":"+DATA!M306","v":""},{"$f":"IF(A49=\"\",\"\",DATA!R306)","v":""},{"$f":"+DATA!$Q$306","v":0},null,null,0,null,null,null,null,null,null,null,null,null,null,null,null,null,{"$f":"SUM(MUN_13)","v":0},0]
[{"$f":"+DATA!M307","v":""},{"$f":"IF(A50=\"\",\"\",DATA!R307)","v":""},{"$f":"+DATA!$Q$307","v":0},null,null,0,null,null,null,null,null,null,null,null,null,null,null,null,null,{"$f":"SUM(MUN_14)","v":0},0]
[{"$f":"+DATA!M308","v":""},{"$f":"IF(A51=\"\",\"\",DATA!R308)","v":""},{"$f":"+DATA!$Q$308","v":0},null,null,0,null,null,null,null,null,null,null,null,null,null,null,null,null,{"$f":"SUM(MUN_15)","v":0},0]
[{"$f":"+DATA!M309","v":""},{"$f":"IF(A52=\"\",\"\",DATA!R309)","v":""},{"$f":"+DATA!$Q$309","v":0},null,null,0,null,null,null,null,null,null,null,null,null,null,null,null,null,{"$f":"SUM(MUN_16)","v":0},0]
[{"$f":"+DATA!M310","v":""},{"$f":"IF(A53=\"\",\"\",DATA!R310)","v":""},{"$f":"+DATA!$Q$310","v":0},null,null,0,null,null,null,null,null,null,null,null,null,null,null,null,null,{"$f":"SUM(MUN_17)","v":0},0]
[{"$f":"+DATA!M311","v":""},{"$f":"IF(A54=\"\",\"\",DATA!R311)","v":""},{"$f":"+DATA!$Q$311","v":0},null,null,0,null,null,null,null,null,null,null,null,null,null,null,null,null,{"$f":"SUM(MUN_18)","v":0},0]
[{"$f":"+DATA!M312","v":""},{"$f":"IF(A55=\"\",\"\",DATA!R312)","v":""},{"$f":"+DATA!$Q$312","v":0},null,null,0,null,null,null,null,null,null,null,null,null,null,null,null,null,{"$f":"SUM(MUN_19)","v":0},0]
[{"$f":"+DATA!M313","v":""},{"$f":"IF(A56=\"\",\"\",DATA!R313)","v":""},{"$f":"+DATA!$Q$313","v":0},null,null,0,null,null,null,null,null,null,null,null,null,null,null,null,null,{"$f":"SUM(MUN_20)","v":0},0]
[{"$f":"+DATA!M314","v":""},{"$f":"IF(A57=\"\",\"\",DATA!R314)","v":""},{"$f":"+DATA!$Q$314","v":0},null,null,0,null,null,null,null,null,null,null,null,null,null,null,null,null,{"$f":"SUM(MUN_21)","v":0},0]
[{"$f":"+DATA!M315","v":""},{"$f":"IF(A58=\"\",\"\",DATA!R315)","v":""},{"$f":"+DATA!$Q$315","v":0},null,null,0,null,null,null,null,null,null,null,null,null,null,null,null,null,{"$f":"SUM(MUN_22)","v":0},0]
[{"$f":"+DATA!M316","v":""},{"$f":"IF(A59=\"\",\"\",DATA!R316)","v":""},{"$f":"+DATA!$Q$316","v":0},null,null,0,null,null,null,null,null,null,null,null,null,null,null,null,null,{"$f":"SUM(MUN_23)","v":0},0]
[{"$f":"+DATA!M317","v":0},{"$f":"IF(A60=\"\",\"\",DATA!R317)","v":"00:00:00"},{"$f":"+DATA!$Q$317","v":0},null,null,0,null,null,null,null,null,null,null,null,null,null,null,null,null,{"$f":"SUM(G60:R60)","v":0},0]
[]
[{"$f":"IF(A101=1,A112,A113)","v":"TOTALS"},null,{"$f":"SUM(C35:C60)","v":0},{"$f":"SUM(D35:D60)","v":0},null,{"$f":"SUM(F35:F60)","v":0},{"$f":"SUM(G37:G60)","v":0},{"$f":"SUM(H37:H60)","v":0},0,0,0,0,0,0,0,0,0,0,null,{"$f":"SUM(T37:T60)","v":0},{"$f":"SUM(U37:U60)","v":0}]
[]
[]
["TOTAL SPECIAL LEVY EXCLUDING TIG & PTOG PAYMENT",null,null,null,null,{"$f":"F62","v":0},{"$f":"G62*F65/F62","v":{"$error":"#DIV/0!"}},{"$f":"IF($D$13=\"\",\"\",IF($F$66<>0,H62/$F62*$F$65,0))","v":""},"","","","","",{"$f":"IF($D$13=\"\",\"\",ROUND(+N62*$D$13,0))","v":""},"","","","",null,{"$f":"SUM(G65:R65)","v":{"$error":"#DIV/0!"}},{"$f":"+F65-T65","v":{"$error":"#DIV/0!"}}]
["DIVISION SHARE OF TOTAL SPECIAL LEVY",null,null,null,null,{"$f":"F65-F67","v":0},{"$f":"IF($D$13=\"\",\"\",IF($F$66<>0,G62/$F62*$F$66,0))","v":""},"","","","","","","","","","","",null,{"$f":"SUM(G66:R66)","v":0},0]
[{"$f":"IF($A$101=1,B107,B108)","v":"  AMOUNT REMITTED TO DSFM"},null,null,null,null,{"$f":"D30","v":0},{"$f":"IF($D$13=\"\",\"\",IF($F$66<>0,G62/$F62*$F$67,0))","v":""},"","","","","","",{"$f":"IF($D$13=\"\",\"\",N66+N65)","v":""},"","","","",null,{"$f":"SUM(G67:R67)","v":0},0]
[null,null,null,null,null,null,{"$f":"IF(G16=DATA!$AI$7,\"D\",\"\")","v":""},{"$f":"IF(H16=DATA!$AI$7,\"D\",\"\")","v":""},{"$f":"IF(I16=DATA!$AI$7,\"D\",\"\")","v":""},{"$f":"IF(J16=DATA!$AI$7,\"D\",\"\")","v":""},{"$f":"IF(K16=DATA!$AI$5,\"D\",\"\")","v":""},{"$f":"IF(L16=DATA!$AI$5,\"D\",\"\")","v":""},{"$f":"IF(M16=DATA!$AI$5,\"D\",\"\")","v":""},{"$f":"IF(N16=DATA!$AI$5,\"D\",\"\")","v":""},{"$f":"IF(O16=DATA!$AI$5,\"D\",\"\")","v":""},{"$f":"IF(P16=DATA!$AI$5,\"D\",\"\")","v":""},{"$f":"IF(Q16=DATA!$AI$5,\"D\",\"\")","v":""},{"$f":"IF(R16=DATA!$AI$5,\"D\",\"\")","v":""}]
[null,null,null,null,null,null,{"$f":"IF($A$101=1,IF(G16=DATA!$AI$7,\"Please remit to DSFM within five days.\",\"\"),IF(G16=DATA!$AI$7,\"Veuillez remettre à la DSFM d’ici 5 jours.\n\",\"\"))","v":""},{"$f":"IF($A$101=1,IF(H16=DATA!$AI$7,\"Please remit to DSFM within five days.\",\"\"),IF(H16=DATA!$AI$7,\"Veuillez remettre à la DSFM d’ici 5 jours.\n\",\"\"))","v":""},{"$f":"IF($A$101=1,IF(I16=DATA!$AI$7,\"Please remit to DSFM within five days.\",\"\"),IF(I16=DATA!$AI$7,\"Veuillez remettre à la DSFM d’ici 5 jours.\n\",\"\"))","v":""},{"$f":"IF($A$101=1,IF(J16=DATA!$AI$7,\"Please remit to DSFM within five days.\",\"\"),IF(J16=DATA!$AI$7,\"Veuillez remettre à la DSFM d’ici 5 jours.\n\",\"\"))","v":""},{"$f":"IF($A$101=1,IF(K16=DATA!$AI$7,\"Please remit to DSFM within five days.\",\"\"),IF(K16=DATA!$AI$7,\"Veuillez remettre à la DSFM d’ici 5 jours.\",\"\"))","v":""},{"$f":"IF($A$101=1,IF(L16=DATA!$AI$7,\"Please remit to DSFM within five days.\",\"\"),IF(L16=DATA!$AI$7,\"Veuillez remettre à la DSFM d’ici 5 jours.\n\",\"\"))","v":""},{"$f":"IF($A$101=1,IF(M16=DATA!$AI$7,\"Please remit to DSFM within five days.\",\"\"),IF(M16=DATA!$AI$7,\"Veuillez remettre à la DSFM d’ici 5 jours.\n\",\"\"))","v":""},{"$f":"IF($A$101=1,IF(N16=DATA!$AI$7,\"Please remit to DSFM within five days.\",\"\"),IF(N16=DATA!$AI$7,\"Veuillez remettre à la DSFM d’ici 5 jours.\n\",\"\"))","v":""},{"$f":"IF($A$101=1,IF(O16=DATA!$AI$7,\"Please remit to DSFM within five days.\",\"\"),IF(O16=DATA!$AI$7,\"Veuillez remettre à la DSFM d’ici 5 jours.\n\",\"\"))","v":""},{"$f":"IF($A$101=1,IF(P16=DATA!$AI$7,\"Please remit to DSFM within five days.\",\"\"),IF(P16=DATA!$AI$7,\"Veuillez remettre à la DSFM d’ici 5 jours.\n\",\"\"))","v":""},{"$f":"IF($A$101=1,IF(Q16=DATA!$AI$7,\"Please remit to DSFM within five days.\",\"\"),IF(Q16=DATA!$AI$7,\"Veuillez remettre à la DSFM d’ici 5 jours.\n\",\"\"))","v":""},{"$f":"IF($A$101=1,IF(R16=DATA!$AI$7,\"Please remit to DSFM within five days.\",\"\"),IF(R16=DATA!$AI$7,\"Veuillez remettre à la DSFM d’ici 5 jours.\n\",\"\"))","v":""}]
[null,null,null,null,null,null,{"$f":"IF(OR(G16=$AO$1,G16=$AP$1),1,\"\")","v":1},"","","","","","","","","","",""]
[]
["Notes:",null,null,"Remarques :"]
["(1)  Per Calculation of Special Levy submitted with annual budget",null,null,"(1)  Selon le calcul de la taxe spéciale soumis avec le budget annuel"]
["(2)  Portion of Special Levy (per Note 1) provided by the Province of Manitoba",null,null,"(2)  Partie de la taxe spéciale (voir remarque 1) fournie par la province du Manitoba."]
[]
["I certify the above to be a true and correct statement.",null,null,"Je déclare vrais et exacts les renseignements ci-dessus."]
[]
[]
[]
["Date",null,null,"Secretary-treasurer / Secrétaire-trésorier"]
[]
[]
[]
[]
[]
[]
[]
[]
[]
[]
[]
[]
[]
[]
[]
[]
[]
[]
[]
[]
[{"$f":"+DATA!AQ1","v":1},null,null,null,null,null,"REMITTANCE 1","REMITTANCE 2","REMITTANCE 3","REMITTANCE 4","REMITTANCE 5","REMITTANCE 6","REMITTANCE 7","REMITTANCE 8","REMITTANCE 9","REMITTANCE 10","REMITTANCE 11","REMITTANCE 12"]
[{"$f":"IF($A$101=1,\"Please remit to DSFM within five days.\",\"Veuillez remettre à la DSFM d’ici 5 jours.\")","v":"Please remit to DSFM within five days."},null,null,null,null,null,"REMISE 1","REMISE 2","REMISE 3","REMISE 4","REMISE 5","REMISE 6","REMISE 7","REMISE 8","REMISE 9","REMISE 10","REMISE 11","REMISE 12"]
[]
["REMITTING AUTHORITY / MUNICIPALITY","TAX DUE DATE","TOTAL SPECIAL LEVY BY MUNICIPALITY","Less: \nEDUCATION PROPERTY TAX CREDIT","Less: \nMANITOBA SCHOOL TAX REBATE","NET SPECIAL LEVY BY MUNICIPALITY"]
["MUNICIPALITÉ",{"$f":"+FORM!D42&\" \"&FORM!D43","v":"ÉCHÉANCE DE LA TAXE"},"TOTAL DE LA TAXE SPÉCIALE","Moins: CRÉDIT D'IMPÔT FONCIER DU MANITOBA EN MATIÉRE D'ÉDUCATION","Moins: REMISE DE TAXE SCHOLAIRE",{"$f":"+FORM!E42&\" \"&FORM!E43","v":"MONTANT NET DE LA TAXE SPÉCIALE"}]
[]
[null,"  AMOUNT REMITTED TO DSFM"]
[null," MONTANT REMIS À DSFM"]
[]
[null,null,"YEAR OF LEVY "]
[null,"","ANNÉE DE LA TAXE"]
["TOTALS"]
["TOTAUX",null,"SPECIAL LEVY BEFORE TIG (line J.)"]
[null,null,"TAXE SPÉCIALE (line J. from SL form)"]
["BALANCE TO"]
["COLLECT",null,"Calculation of Special Levy Remittances to la Division scolaire franco-manitobaine (DSFM)"]
["SOLDE",null,"Calcul de la taxe spéciale remise à la Division scolaire franco-manitobaine (DSFM)"]
["RECEVABLE"]
[null,null,"SPECIAL LEVY FOR DSFM (line H.)"]
["Select the ",null,"TAXE SPÉCIALE POUR LA DSFM (line H.)"]
["number of"]
["remittance(s).",null,"DSFM's share of EPTC (paid by Province)"]
["Sélectionnez",null,"Part du CIFME de la DSFM (payée par la province)"]
[" le nombre"]
[" de remises.",null,"EDUCATION PROPERTY TAX CREDIT (EPTC)"]
[null,null,"CRÉDIT D'IMPÔT FONCIER DU MANITOBA POUR L'ÉDUCATION (EPTC)"]
[]
[null,null,"PERCENTAGE (%) OF TOTAL SPECIAL LEVY APPLICABLE TO DSFM"]
[null,null,"POURCENTAGE (%) DU TOTAL DE LA TAXE SPÉCIALE"]
[]
[]
[null,null,"ADJUSTMENT FOR DSFM (line I.)"]
[null,null,"AJUSTEMENT POUR LA DSFM (line I.)"]
[]
[]
[null,"TOTAL FOR DSFM CALCULATION (EXCLUDES EPTC)"]
[null,"TOTAL POUR LE CALCUL DSFM (EXCLUT EPTC)"]
[]
[null,null,"NET TO BE PAID TO DSFM"]
[null,null,"MONTANT NET À ÊTRE PAYÉ À LA DSFM"]
[]
[null,null,"DSFM's share of TIG (paid by Province)"]
[null,null,"Part de l'incitatif fiscal de la DSFM (payée par la province)"]
[]
[null,null,"DIVISION's share of TIG"]
[null,null,"Part de DIVISION de TIG (payée par la province)"]
[]
[null,null,"TOTAL PTOG (line M.)"]
[null,null,"PTOG TOTAL (line M.)"]
[]
[null,null,"DIVISON's share of PTOG (paid by Province)"]
[null,null,"Part de la DIVISION due PTOG (payée par la province)"]
[]
[null,null,"DSFM's share of PTOG (paid by Province)"]
[null,null,"Part de DSFM du PTOG (payée par la province)"]
[]
[null,null,"DSFM's share of MSTR (paid by Province)"]
[null,null,"Part de DSFM du MSTR (payée par la province)"]
[]
[null,null,"TOTAL TIG (line L.)"]
[null,null,"TIG TOTAL (line L.)"]

{"sheet":"FORM","index":3,"n_rows":95,"n_cols":15,"rows_kept":95,"cut":false,"hidden":true,"merged":[[0,0,0,9],[27,6,27,12],[28,4,28,5],[28,6,28,7],[4,2,5,6],[7,2,8,3],[14,0,15,4],[17,8,17,10],[14,8,15,10],[13,8,13,10],[10,3,11,5],[92,0,92,12],[41,0,41,2],[45,0,45,2],[45,4,45,5],[41,6,41,7],[42,6,42,7],[41,4,41,5],[42,4,42,5],[65,11,65,12],[78,2,79,3],[43,11,43,12],[42,11,42,12],[44,11,44,12],[45,11,45,12],[43,0,43,2],[46,0,46,2],[44,0,44,2],[43,4,43,5],[54,0,54,2],[49,0,49,2],[47,0,47,2],[48,0,48,2],[53,4,53,5],[49,4,49,5],[30,0,30,3],[31,0,31,3],[30,4,30,5],[30,6,30,7],[33,0,33,3],[31,4,31,5],[35,0,35,3],[14,11,15,11],[18,11,19,11],[22,11,23,11],[24,8,24,10],[22,8,23,10],[16,8,16,10],[18,8,19,10],[28,11,28,12],[41,11,41,12],[30,8,30,10],[40,8,40,10],[32,11,32,12],[29,11,29,12],[22,14,23,14],[25,14,32,14],[10,14,20,14],[44,4,44,5],[40,11,40,12],[30,11,30,12],[31,11,31,12],[41,8,41,10],[26,8,26,10],[25,8,25,10],[32,8,32,10],[39,8,39,10],[39,11,39,12],[38,6,38,12],[39,4,39,5],[39,6,39,7],[51,6,51,7],[40,4,40,5],[29,4,29,5],[40,6,40,7],[43,6,43,7],[46,6,46,7],[45,6,45,7],[20,8,20,10],[50,8,50,10],[49,8,49,10],[42,8,42,10],[43,8,43,10],[44,8,44,10],[28,8,28,10],[45,8,45,10],[48,8,48,10],[21,8,21,10],[47,6,47,7],[47,8,47,10],[48,6,48,7],[48,4,48,5],[49,6,49,7],[44,6,44,7],[46,4,46,5],[59,11,59,12],[60,11,60,12],[62,8,62,10],[59,6,59,7],[64,8,64,10],[60,4,60,5],[59,0,59,2],[57,4,57,5],[57,6,57,7],[57,8,57,10],[57,0,57,2],[58,4,58,5],[58,8,58,10],[58,6,58,7],[58,0,58,2],[70,6,70,7],[70,8,70,10],[60,6,60,7],[60,8,60,10],[74,9,76,9],[79,10,79,11],[78,10,78,11],[66,0,66,2],[71,11,71,12],[70,11,70,12],[66,8,66,10],[66,11,66,12],[70,4,70,5],[74,10,76,11],[74,7,76,8],[63,11,63,12],[64,11,64,12],[64,6,64,7],[62,6,62,7],[68,0,68,3],[67,6,68,7],[67,0,67,3],[62,11,62,12],[65,6,65,7],[87,0,87,1],[57,11,57,12],[54,11,54,12],[51,11,51,12],[52,11,52,12],[53,11,53,12],[47,11,47,12],[48,11,48,12],[55,11,55,12],[58,11,58,12],[61,11,61,12],[60,0,60,2],[56,4,56,5],[56,6,56,7],[61,0,61,2],[61,4,61,5],[59,8,59,10],[61,6,61,7],[61,8,61,10],[77,10,77,11],[49,11,49,12],[50,11,50,12],[56,11,56,12],[56,8,56,10],[74,14,76,14],[67,8,68,10],[67,11,68,12],[74,6,76,6],[32,4,32,5],[32,6,32,7],[63,6,63,7],[63,8,63,10],[59,4,59,5],[72,4,72,5],[33,8,34,10],[51,8,51,10],[50,6,50,7],[46,8,46,10],[55,4,55,5],[54,8,54,10],[52,6,52,7],[53,8,53,10],[52,8,52,10],[55,8,55,10],[55,6,55,7],[63,4,63,5],[64,4,64,5],[62,4,62,5],[65,8,65,10],[67,4,68,5],[66,6,66,7],[66,4,66,5],[65,4,65,5],[56,0,56,2],[29,6,29,7],[29,8,29,10],[31,6,31,7],[31,8,31,10],[55,0,55,2],[64,0,64,2],[62,0,62,2],[50,0,50,2],[47,4,47,5],[50,4,50,5],[51,4,51,5],[54,6,54,7],[53,0,53,2],[54,4,54,5],[53,6,53,7],[52,4,52,5],[52,0,52,2],[51,0,51,2],[94,0,94,9],[33,11,34,12],[35,4,36,5],[35,6,36,7],[35,8,36,10],[35,11,36,12],[34,0,34,3],[33,4,34,5],[33,6,34,7],[36,0,36,3],[87,3,87,7],[63,0,63,2],[71,4,71,5],[77,7,77,8],[65,0,65,2],[46,11,46,12],[88,3,88,7],[70,0,70,3],[88,0,88,1],[76,0,76,4],[74,5,76,5],[74,0,74,4],[75,0,75,4],[78,7,78,8]]}
[]
["Calculation of Amount Remitted to la Division scolaire franco-manitobaine"]
["Calcul du montant remis à la Division scolaire franco-manitobaine"]
[]
["School Division:",null,{"$f":"IF(VLOOKUP(DIVNUM,LOOKUPTABLE,2)=\"Press arrow for your School Division >\",\"\",VLOOKUP(DIVNUM,LOOKUPTABLE,2))","v":""}]
["Division scolaire :"]
[]
["Year of Levy:",null,{"$f":"LEVYYEAR","v":2024}]
["Année de la taxe :"]
[]
["For the Period Ended:",null,null,{"$f":"+DATA!AI6","v":"00:00:00"},null,null,null,null,null,null,null,null,null,null,"PERCENTAGE IN BOX (C) IS FORMATTED TO DISPLAY ONLY 3 DECIMALS IN ORDER TO FIT THEIR RESPECTIVE FIELDS. THE ACTUAL UNROUNDED PERCENTAGE USED TO CALCULATE THE DSFM REMITTANCE ON THIS FORM IS SHOWN BELOW. "]
["Pour la période se terminant le :"]
[]
[]
["  TOTAL SPECIAL LEVY / TOTAL DE LA TAXE SPÉCIALE",null,null,null,null,null,null,null,{"$f":"DIVLEVY","v":0},null,null," (1)"]
[]
[null,null,null,null,null,null,null,null,"(A)"]
[]
["  PORTION OF SPECIAL LEVY APPLICABLE TO LA DIVISION SCOLAIRE FRANCO-MANITOBAINE",null,null,null,null,null,null,null,{"$f":"DSFMLEVY+DSFMADJ","v":0},null,null," (1)"]
["  QUOTE-PART DE LA TAXE SPÉCIALE ATTRIBUÉE À LA DIVISION SCOLAIRE FRANCO-MANITOBAINE"]
[null,null,null,null,null,null,null,null,"(B)"]
[]
["  PERCENTAGE (%) OF TOTAL SPECIAL LEVY APPLICABLE TO LA DIVISION SCOLAIRE ",null,null,null,null,null,null,null,{"$f":"IF(I15>0,(I19/I15),0)","v":0},null,null,null,null,null,{"$f":"I23","v":0}]
["  FRANCO-MANITOBAINE : (B) ÷ (A) / POURCENTAGE (%) DU TOTAL DE LA TAXE SPÉCIALE"]
["  ATTRIBUÉ À LA DIVISION SCOLAIRE FRANCO-MANITOBAINE : (B) ÷ (A)",null,null,null,null,null,null,null,"(C)"]
[null,null,null,null,null,null,null,null,null,null,null,null,null,null,"THIS WILL ENSURE THE TOTAL OF REMITTANCES TO THE DSFM WILL MATCH THE AMOUNT (TOTAL OF LINES H. AND I.) CALCULATED ON YOUR SPECIAL LEVY FORM (ROUNDED TO THE NEAREST DOLLAR)."]
[]
[null,null,null,null,null,null,"AMOUNT COLLECTED / MONTANT PERÇU"]
[]
[null,null,null,null,null,null,null,null,"PRIOR PERIODS"]
["PROVINCE OF MANITOBA",null,null,null,"AMOUNT",null,"YEAR TO DATE",null,"PÉRIODES",null,null,"CURRENT PERIOD"]
["PROVINCE DU MANITOBA",null,null,null,"MONTANT",null,"À CE JOUR",null,"ANTÉRIEURES",null,null,"PÉRIODE COURANTE"]
[null,null,null,null,"(2)",null,"(D)",null,"(E)",null,null,"(D) - (E)"]
["EDUCATION PROPERTY TAX CREDIT",null,null,null,{"$f":"DIVEPTC","v":0},null,{"$f":"SUM('DATA ENTRY'!G35:R35)","v":0},null,{"$f":"G34-L34","v":{"$error":"#N/A"}},null,null,{"$f":"+DATA!AJ8","v":{"$error":"#N/A"}}]
["CRÉDIT D'IMPÔT FONCIER DU MANITOBA POUR L'ÉDUCATION"]
["TAX INCENTIVE GRANT",null,null,null,{"$f":"DIVTIG","v":{"$error":"#NAME?"}},null,{"$f":"SUM('DATA ENTRY'!G36:R36)","v":0},null,{"$f":"G36-L36","v":{"$error":"#N/A"}},null,null,{"$f":"+DATA!AJ9","v":{"$error":"#N/A"}}]
["CRÉDIT D'IMPÔT FONCIER EN MATIÈRE D'ÉDUCATION"]
[]
[null,null,null,null,null,null,"AMOUNT COLLECTED / MONTANT PERÇU"]
[null,null,null,"TAX DUE"]
[null,null,null,"DATE","NET SPECIAL LEVY",null,null,null,"PRIOR PERIODS"]
["MUNICIPALITY / MUNICIPALITÉ",null,null,"ÉCHÉANCE","MONTANT NET DE",null,"YEAR TO DATE",null,"PÉRIODES",null,null,"CURRENT PERIOD"]
[null,null,null,"DE LA TAXE","LA TAXE SPÉCIALE",null,"À CE JOUR",null,"ANTÉRIEURES",null,null,"PÉRIODE COURANTE"]
[null,null,null,null,null,null,"(D)",null,"(E)",null,null,"(D) - (E)"]
[{"$f":"IF('DATA ENTRY'!A37=0,\"\",\"   \"&'DATA ENTRY'!A37)","v":"   "},null,null,{"$f":"'DATA ENTRY'!B37","v":""},{"$f":"HOMEMUN","v":0},null,{"$f":"SUM('DATA ENTRY'!G37:R37)","v":0},null,{"$f":"G45-L45","v":{"$error":"#N/A"}},null,null,{"$f":"+DATA!AJ10","v":{"$error":"#N/A"}}]
[{"$f":"IF('DATA ENTRY'!A38=0,\"\",\"   \"&'DATA ENTRY'!A38)","v":"   "},null,null,{"$f":"'DATA ENTRY'!B38","v":""},{"$f":"'DATA ENTRY'!F38","v":0},null,{"$f":"SUM('DATA ENTRY'!G38:R38)","v":0},null,{"$f":"G46-L46","v":{"$error":"#N/A"}},null,null,{"$f":"+DATA!AJ11","v":{"$error":"#N/A"}}]
[{"$f":"IF('DATA ENTRY'!A39=0,\"\",\"   \"&'DATA ENTRY'!A39)","v":"   "},null,null,{"$f":"'DATA ENTRY'!B39","v":""},{"$f":"'DATA ENTRY'!F39","v":0},null,{"$f":"SUM('DATA ENTRY'!G39:R39)","v":0},null,{"$f":"G47-L47","v":{"$error":"#N/A"}},null,null,{"$f":"+DATA!AJ12","v":{"$error":"#N/A"}}]
[{"$f":"IF('DATA ENTRY'!A40=0,\"\",\"   \"&'DATA ENTRY'!A40)","v":"   "},null,null,{"$f":"'DATA ENTRY'!B40","v":""},{"$f":"'DATA ENTRY'!F40","v":0},null,{"$f":"SUM('DATA ENTRY'!G40:R40)","v":0},null,{"$error":"#N/A"},null,null,{"$f":"+DATA!AJ13","v":{"$error":"#N/A"}}]
[{"$f":"IF('DATA ENTRY'!A41=0,\"\",\"   \"&'DATA ENTRY'!A41)","v":"   "},null,null,{"$f":"'DATA ENTRY'!B41","v":""},{"$f":"'DATA ENTRY'!F41","v":0},null,{"$f":"SUM('DATA ENTRY'!G41:R41)","v":0},null,{"$error":"#N/A"},null,null,{"$f":"+DATA!AJ14","v":{"$error":"#N/A"}}]
[{"$f":"IF('DATA ENTRY'!A42=0,\"\",\"   \"&'DATA ENTRY'!A42)","v":"   "},null,null,{"$f":"'DATA ENTRY'!B42","v":""},{"$f":"'DATA ENTRY'!F42","v":0},null,{"$f":"SUM('DATA ENTRY'!G42:R42)","v":0},null,{"$error":"#N/A"},null,null,{"$f":"+DATA!AJ15","v":{"$error":"#N/A"}}]
[{"$f":"IF('DATA ENTRY'!A43=0,\"\",\"   \"&'DATA ENTRY'!A43)","v":"   "},null,null,{"$f":"'DATA ENTRY'!B43","v":""},{"$f":"'DATA ENTRY'!F43","v":0},null,{"$f":"SUM('DATA ENTRY'!G43:R43)","v":0},null,{"$error":"#N/A"},null,null,{"$f":"+DATA!AJ16","v":{"$error":"#N/A"}}]
[{"$f":"IF('DATA ENTRY'!A44=0,\"\",\"   \"&'DATA ENTRY'!A44)","v":"   "},null,null,{"$f":"'DATA ENTRY'!B44","v":""},{"$f":"'DATA ENTRY'!F44","v":0},null,{"$f":"SUM('DATA ENTRY'!G44:R44)","v":0},null,{"$error":"#N/A"},null,null,{"$f":"+DATA!AJ17","v":{"$error":"#N/A"}}]
[{"$f":"IF('DATA ENTRY'!A45=0,\"\",\"   \"&'DATA ENTRY'!A45)","v":"   "},null,null,{"$f":"'DATA ENTRY'!B45","v":""},{"$f":"'DATA ENTRY'!F45","v":0},null,{"$f":"SUM('DATA ENTRY'!G45:R45)","v":0},null,{"$error":"#N/A"},null,null,{"$f":"+DATA!AJ18","v":{"$error":"#N/A"}}]
[{"$f":"IF('DATA ENTRY'!A46=0,\"\",\"   \"&'DATA ENTRY'!A46)","v":"   "},null,null,{"$f":"'DATA ENTRY'!B46","v":""},{"$f":"'DATA ENTRY'!F46","v":0},null,{"$f":"SUM('DATA ENTRY'!G46:R46)","v":0},null,{"$error":"#N/A"},null,null,{"$f":"+DATA!AJ19","v":{"$error":"#N/A"}}]
[{"$f":"IF('DATA ENTRY'!A47=0,\"\",\"   \"&'DATA ENTRY'!A47)","v":"   "},null,null,{"$f":"'DATA ENTRY'!B47","v":""},{"$f":"'DATA ENTRY'!F47","v":0},null,{"$f":"SUM('DATA ENTRY'!G47:R47)","v":0},null,{"$error":"#N/A"},null,null,{"$f":"+DATA!AJ20","v":{"$error":"#N/A"}}]
[{"$f":"IF('DATA ENTRY'!A48=0,\"\",\"   \"&'DATA ENTRY'!A48)","v":"   "},null,null,{"$f":"'DATA ENTRY'!B48","v":""},{"$f":"'DATA ENTRY'!F48","v":0},null,{"$f":"SUM('DATA ENTRY'!G48:R48)","v":0},null,{"$error":"#N/A"},null,null,{"$f":"+DATA!AJ21","v":{"$error":"#N/A"}}]
[{"$f":"IF('DATA ENTRY'!A49=0,\"\",\"   \"&'DATA ENTRY'!A49)","v":"   "},null,null,{"$f":"'DATA ENTRY'!B49","v":""},{"$f":"'DATA ENTRY'!F49","v":0},null,{"$f":"SUM('DATA ENTRY'!G49:R49)","v":0},null,{"$error":"#N/A"},null,null,{"$f":"+DATA!AJ22","v":{"$error":"#N/A"}}]
[{"$f":"IF('DATA ENTRY'!A50=0,\"\",\"   \"&'DATA ENTRY'!A50)","v":"   "},null,null,{"$f":"'DATA ENTRY'!B50","v":""},{"$f":"'DATA ENTRY'!F50","v":0},null,{"$f":"SUM('DATA ENTRY'!G50:R50)","v":0},null,{"$error":"#N/A"},null,null,{"$f":"+DATA!AJ23","v":{"$error":"#N/A"}}]
[{"$f":"IF('DATA ENTRY'!A51=0,\"\",\"   \"&'DATA ENTRY'!A51)","v":"   "},null,null,{"$f":"'DATA ENTRY'!B51","v":""},{"$f":"'DATA ENTRY'!F51","v":0},null,{"$f":"SUM('DATA ENTRY'!G51:R51)","v":0},null,{"$error":"#N/A"},null,null,{"$f":"+DATA!AJ24","v":{"$error":"#N/A"}}]
[{"$f":"IF('DATA ENTRY'!A52=0,\"\",\"   \"&'DATA ENTRY'!A52)","v":"   "},null,null,{"$f":"'DATA ENTRY'!B52","v":""},{"$f":"'DATA ENTRY'!F52","v":0},null,{"$f":"SUM('DATA ENTRY'!G52:R52)","v":0},null,{"$error":"#N/A"},null,null,{"$f":"+DATA!AJ25","v":{"$error":"#N/A"}}]
[{"$f":"IF('DATA ENTRY'!A53=0,\"\",\"   \"&'DATA ENTRY'!A53)","v":"   "},null,null,{"$f":"'DATA ENTRY'!B53","v":""},{"$f":"'DATA ENTRY'!F53","v":0},null,{"$f":"SUM('DATA ENTRY'!G53:R53)","v":0},null,{"$f":"G61-L61","v":{"$error":"#N/A"}},null,null,{"$f":"+DATA!AJ26","v":{"$error":"#N/A"}}]
[{"$f":"IF('DATA ENTRY'!A54=0,\"\",\"   \"&'DATA ENTRY'!A54)","v":"   "},null,null,{"$f":"'DATA ENTRY'!B54","v":""},{"$f":"'DATA ENTRY'!F54","v":0},null,{"$f":"SUM('DATA ENTRY'!G54:R54)","v":0},null,{"$error":"#N/A"},null,null,{"$f":"+DATA!AJ27","v":{"$error":"#N/A"}}]
[{"$f":"IF('DATA ENTRY'!A55=0,\"\",\"   \"&'DATA ENTRY'!A55)","v":"   "},null,null,{"$f":"'DATA ENTRY'!B55","v":""},{"$f":"'DATA ENTRY'!F55","v":0},null,{"$f":"SUM('DATA ENTRY'!G55:R55)","v":0},null,{"$error":"#N/A"},null,null,{"$f":"+DATA!AJ28","v":{"$error":"#N/A"}}]
[{"$f":"IF('DATA ENTRY'!A56=0,\"\",\"   \"&'DATA ENTRY'!A56)","v":"   "},null,null,{"$f":"'DATA ENTRY'!B56","v":""},{"$f":"'DATA ENTRY'!F56","v":0},null,{"$f":"SUM('DATA ENTRY'!G56:R56)","v":0},null,{"$error":"#N/A"},null,null,{"$f":"+DATA!AJ29","v":{"$error":"#N/A"}}]
[{"$f":"IF('DATA ENTRY'!A57=0,\"\",\"   \"&'DATA ENTRY'!A57)","v":"   "},null,null,{"$f":"'DATA ENTRY'!B57","v":""},{"$f":"'DATA ENTRY'!F57","v":0},null,{"$f":"SUM('DATA ENTRY'!G57:R57)","v":0},null,{"$error":"#N/A"},null,null,{"$f":"+DATA!AJ30","v":{"$error":"#N/A"}}]
[{"$f":"IF('DATA ENTRY'!A58=0,\"\",\"   \"&'DATA ENTRY'!A58)","v":"   "},null,null,{"$f":"'DATA ENTRY'!B58","v":""},{"$f":"'DATA ENTRY'!F58","v":0},null,{"$f":"SUM('DATA ENTRY'!G58:R58)","v":0},null,{"$error":"#N/A"},null,null,{"$f":"+DATA!AJ31","v":{"$error":"#N/A"}}]
[{"$f":"IF('DATA ENTRY'!A59=0,\"\",\"   \"&'DATA ENTRY'!A59)","v":"   "},null,null,{"$f":"'DATA ENTRY'!B59","v":""},{"$f":"'DATA ENTRY'!F59","v":0},null,{"$f":"SUM('DATA ENTRY'!G59:R59)","v":0},null,{"$error":"#N/A"},null,null,{"$f":"+DATA!AJ32","v":{"$error":"#N/A"}}]
["  TOTAL MUNICIPALITIES",null,null,null,{"$f":"SUM(E45:F67)","v":0},null,{"$f":"SUM(G45:H67)","v":0},null,{"$f":"SUM(I45:K67)","v":{"$error":"#N/A"}},null,null,{"$f":"SUM(L45:M67)","v":{"$error":"#N/A"}}]
["  TOTAL POUR LES MUNICIPALITÉS"]
[]
["  GRAND TOTAL / TOTAL GÉNÉRAL",null,null,null,{"$f":"E34+E36+E68","v":{"$error":"#NAME?"}},null,{"$f":"G34+G36+G68","v":0},null,{"$f":"+I34+I36+I68","v":{"$error":"#N/A"}},null,null,{"$f":"L34+L36+L68","v":{"$error":"#N/A"}}]
[null,null,null,null,"AMOUNT (A)",null,null,null,null,null,null,"(F)"]
[null,null,null,null,"MONTANT (A)"]
[]
["  AMOUNT REMITTED TO LA DIVISION SCOLAIRE",null,null,null,null,{"$f":"I23","v":0},"X",{"$f":"L71","v":{"$error":"#N/A"}},null,"=",{"$f":"ROUND(F75*H75,0)","v":{"$error":"#N/A"}},null,null,null,"< REMITTANCE IS ROUNDED TO NEAREST DOLLAR."]
["  FRANCO-MANITOBAINE / MONTANT REMIS À LA DIVISION"]
["  SCOLAIRE FRANCO-MANITOBAINE"]
[]
[null,"YEAR TO DATE",{"$f":"ROUND(G71*F75,0)","v":0},null,null,"(C)",null,"(F)",null,null,"REMITTANCE"]
[null,"À CE JOUR",null,null,null,null,null,null,null,null,"REMISE"]
[]
[]
["Notes:",null,null,null,null,null,"Remarques :"]
["(1)  Per Calculation of Special Levy submitted with annual budget",null,null,null,null,null,"(1)  Selon le calcul de la taxe spéciale soumis avec le budget annuel"]
["(2)  Portion of Special Levy (per Note 1) provided by the Province of Manitoba",null,null,null,null,null,"(2)  Partie de la taxe spéciale (voir remarque 1) fournie par la province"]
[null,null,null,null,null,null,"      du Manitoba"]
["I certify the above to be a true and correct statement. / Je déclare vrais et exacts les renseignements ci-dessus."]
[{"$f":"IF(DATE_ON_OFF=1,NOW(),IF(DATE_ON_OFF=2,\"\",DATE_ENTRY))","v":""}]
["Date",null,null,"Secretary-treasurer / Secrétaire-trésorier"]
[]
["c.c. : Division scolaire franco-manitobaine"]
["         School Division / Division scolaire"]
["This form is available on the Internet at: / La présente formule est disponible sur Internet : http://www.edu.gov.mb.ca/k12/finance/forms/index.html"]
[]
["Form 2/Formule 2"]

{"sheet":"Changes","index":4,"n_rows":18,"n_cols":2,"rows_kept":18,"cut":false,"hidden":true,"merged":[]}
[]
[null,"Changes in"]
[null,"Data Entry Sheet"]
[1," added a row of TOTAL in Row 42"]
[2," added 2 columns (Column M of YEAR TO DATE COLLECTION and column N of BALANCE TO COLLECT)"]
[3,"In Column D 17: D 40 there is a Hide messege of Error (If the sum of the amounts in the PERIODS Cells is/are bigger than the TOTAL)"]
[4,"Maked the EPTC and the TIG the same way as the other entries."]
[5,"There is no needed to put Zero before the amounts in the AMOUNTS COLLECTED the formula works no matter."]
[6,"The TIG in the row 16 it fills automatically"]
[7,"Added 2 columns for Special Levy and EPTC"]
[]
[]
[null,"Changes in"]
[null,"Form Sheet"]
[1,"Changed the formula en Column L ( Current Period, no there is no needed to put Zero en the AMOUNTS COLLECTED )"]
[2,"Changed the Rows 34 and 36 (the EPTC and the TIG the same way as the other entries )"]
[3,"Changed the formula in Cell L71 as the same of the other's of the Grand Total."]
[4,"Changed the formula in Cell D11 so they can bring me the date of the current period."]